Cogmind - Beta 15 @@@ ROGUE MODE // 2025.10.20 @ 16:41:50 Player: Bikerider58 Result: Self-destructed Performance ------------- Evolutions (9) 4500 Regions Visited (29) 5800 Robots Destroyed (338) 1690 Value Destroyed (16542) 16542 Prototype IDs (66) 1320 Alien Tech Used (2) 400 Bonus (5380) 5380 TOTAL SCORE: 35632 Bonus ------- High Alert Combat Kills 2585 Follower Combat Kills 2773 Entered Garrisons 600 Aligned with FarCom 300 Acquired ECA 300 Met Zhirov 300 Met Warlord at Base 500 MAIN.C Attacked Warlord 500 Warlord Defense Kills 268 A7 Reached Mainframe 300 Met R17 at Cetus 500 Met Warlord at Research 2000 Friendly Fire -5546 Cogmind --------- Core Integrity 1034/1600 Matter 250/300 Energy 450/530 System Corruption 16% Temperature Cool (9) Movement Walking (183) Ox1 Location -1/Access Parts ------- > --- POWER (3) -------- Light Quantum Reactor Light Quantum Reactor Reinforced Quantum Reactor > --- PROPULSION (7) --- Advanced Myomer Leg Biometal Leg Biometal Leg > --- UTILITY (11) ----- Advanced Cooling System Advanced Cooling System High-capacity Storage Unit Experimental Cloaking Device Graphene Brace > --- WEAPON (4) ------- Compact HERF Cannon Enhanced Nova Cannon Vibroblade > --- INVENTORY (20) --- Micro Antimatter Reactor Advanced Energy Well (500) Long-range Sensor Array Seismic Detector Improved Transmission Jammer Ghost Barrier Gamma Rifle Heavy Neutron Cannon Enhanced Nova Cannon Core Cannon Enhanced Hardcell Cannon Micro-nuke Launcher Vibroblade Vortex Lance (40) Peak State ------------ > --- POWER ------------ Light Antimatter Reactor Vortex Chain Reactor > --- PROPULSION ------- Enhanced Biometal Leg Heavy Shield Leg Heavy Shield Leg Heavy Shield Leg > --- UTILITY ---------- High-capacity Storage Unit Enhanced Optical Array Long-range Sensor Array Advanced Signal Interpreter Improved Targeting Computer Quantum Capacitor Improved Transmission Jammer Experimental Cloaking Device Layered Heavy Armor Plating > --- WEAPON ----------- Heavy Disruptor Cannon Enhanced Nova Cannon Vibroblade > --- INVENTORY -------- Reinforced Quantum Reactor Biometal Leg Heavy Shield Leg Advanced Cooling System Advanced Cooling System Advanced Energy Well Long-range Sensor Array Seismic Detector Advanced Target Analyzer Graphene Brace Ghost Barrier Enhanced Quantum Rifle Heavy Neutron Cannon Enhanced Nova Cannon Core Cannon Micro-nuke Launcher Vibroblade Vortex Lance [Rating: 199] Favorites ----------- Power Neutrino Core Engine Ion Engine Power Core Neutrino Core Reactor Quantum Reactor Propulsion Light Treads Treads Light Treads Leg Advanced Myomer Leg Wheel Armored Wheel Hover Unit Cooled Antigrav System Flight Unit Improved VTOL Module Utility Advanced Heat Sink Device Advanced Heat Sink Storage Large Storage Unit Processor Improved Signal Interpreter Hackware Advanced System Shield Protection Centrium Medium Armor Plating Weapon Spear Energy Gun Advanced Variable Charge Gun Energy Cannon Heavy Neutron Cannon Ballistic Gun Gauss Rifle Ballistic Cannon Magnetic Acceleration Cannon Launcher Rocket Launcher Impact Weapon Maul Slashing Weapon Vibroblade Piercing Weapon Spear Build | -11 -10 -10 -10 -9 -8 -8 -8 -8 -7 -7 -7 -6 -6 -6 -6 -5 -5 -5 -5 -4 -4 -4 -4 -4 -3 -3 -3 -2 -1 ------- Run | Yrd Mat Min Exi Min Mat Gar Mat Gar Fac Gar Fac Fac Ext Cet Arc Fac Upp Upp Zhi Pro Fac Upp Upp War Pro Res Qua Res Acc Slots Evolved 18 | . . . . . 4 . . . 2 . . 2 . . . 2 . . . . 2 . . . . 2 . 2 2 Power 2 | . . . . . . . . . . . . 1 . . . . . . . . . . . . . 1 . . . Propulsion 5 | . . . . . 1 . . . . . . 1 . . . . . . . . . . . . . 1 . 2 . Utility 9 | . . . . . 2 . . . 2 . . . . . . 1 . . . . 2 . . . . . . . 2 Weapon 2 | . . . . . 1 . . . . . . . . . . 1 . . . . . . . . . . . . . Parts Attached 288 | 7 2 6 . 1 9 23 4 10 16 18 16 13 10 9 3 12 2 7 6 4 13 7 3 34 . 13 7 14 19 Power 34 | 1 . 1 . . 1 2 . 2 2 1 . 3 3 1 1 2 . 1 . . 1 2 . 5 . 1 1 . 3 Engine 11 | 1 . 1 . . 1 1 . 1 2 . . 2 2 . . . . . . . . . . . . . . . . Core 9 | . . . . . . 1 . 1 . . . 1 1 . 1 1 . 1 . . . 1 . 1 . . . . . Reactor 14 | . . . . . . . . . . 1 . . . 1 . 1 . . . . 1 1 . 4 . 1 1 . 3 Propulsion 75 | 2 . 1 . . 3 3 4 3 5 9 4 1 7 3 . . . . 3 1 1 . . 8 . 3 1 6 7 Treads 38 | 2 . 1 . . 3 3 4 2 4 5 4 1 7 2 . . . . . . . . . . . . . . . Leg 28 | . . . . . . . . 1 . 1 . . . . . . . . 3 1 1 . . 4 . 3 1 6 7 Wheel 4 | . . . . . . . . . . 3 . . . 1 . . . . . . . . . . . . . . . Hover 4 | . . . . . . . . . . . . . . . . . . . . . . . . 4 . . . . . Flight 1 | . . . . . . . . . 1 . . . . . . . . . . . . . . . . . . . . Utility 104 | 2 1 1 . . 2 6 . 5 8 7 8 3 . 2 2 6 1 5 3 1 7 4 . 10 . 7 4 5 4 Device 50 | 1 . . . . 1 2 . 1 2 1 5 1 . . 2 3 1 1 . 1 5 3 . 6 . 5 2 4 3 Storage 6 | 1 1 . . . . . . . . . . . . . . . . . 1 . 1 . . . . 2 . . . Processor 14 | . . . . . . 2 . . 2 . 1 1 . . . 1 . 3 . . . . . 1 . . 1 1 1 Hackware 2 | . . . . . . . . . . . . . . . . . . . 1 . 1 . . . . . . . . Protection 32 | . . 1 . . 1 2 . 4 4 6 2 1 . 2 . 2 . 1 1 . . 1 . 3 . . 1 . . Artifact . | . . . . . . . . . . . . . . . . . . . . . . . . . . . . . . Weapon 75 | 2 1 3 . 1 3 12 . . 1 1 4 6 . 3 . 4 1 1 . 2 4 1 3 11 . 2 1 3 5 Energy Gun 21 | 1 . 1 . 1 2 . . . . . . 3 . 2 . 1 1 . . . 3 . 1 3 . . 1 . 1 Energy Cannon 12 | . . . . . . . . . . . . 1 . . . 2 . . . . 1 . 1 2 . . . 2 3 Ballistic Gun 20 | 1 1 1 . . 1 5 . . . 1 4 . . 1 . . . 1 . . . 1 1 1 . . . 1 . Ballistic Cannon 3 | . . . . . . . . . . . . . . . . . . . . 2 . . . 1 . . . . . Launcher 5 | . . 1 . . . 2 . . . . . 1 . . . . . . . . . . . . . . . . 1 Special Weapon . | . . . . . . . . . . . . . . . . . . . . . . . . . . . . . . Impact Weapon 2 | . . . . . . 1 . . . . . . . . . 1 . . . . . . . . . . . . . Slashing Weapon 4 | . . . . . . 1 . . 1 . . . . . . . . . . . . . . . . 2 . . . Piercing Weapon 8 | . . . . . . 3 . . . . . 1 . . . . . . . . . . . 4 . . . . . Special Melee Weapon . | . . . . . . . . . . . . . . . . . . . . . . . . . . . . . . Unidentified Prototypes 27 | . . . . . . . . . 1 . . 2 . 4 . 2 . . 4 . 1 . . 10 . 2 1 . . Corrupted Parts 5 | . . . . . . . . . . . . . . 1 . . . . . . . . 1 3 . . . . . System Corruption 21 | . . . . . . . . . . . . . . 7 . . . . . . . . 4 10 . . . . . Parts Lost 79 | . . 2 . 1 . 2 1 3 2 3 . 2 4 1 . 5 4 8 . . 6 4 5 . . 7 2 . 17 Power 10 | . . . . . . . . . 1 . . . 1 . . 1 . 1 . . 1 1 1 . . 1 1 . 1 Propulsion 15 | . . 1 . . . . . 1 . 2 . . 2 1 . . . 1 . . 1 . . . . 1 . . 5 Utility 36 | . . . . . . 1 1 2 1 1 . 2 1 . . 4 1 4 . . 1 2 2 . . 5 . . 8 Weapon 18 | . . 1 . 1 . 1 . . . . . . . . . . 3 2 . . 3 1 2 . . . 1 . 3 Highest Loss Streak 12 | . . 1 . 1 . 1 1 1 1 2 . 1 2 1 . 2 3 3 . . 3 1 2 . . 6 2 . 12 To Critical Strikes . | . . . . . . . . . . . . . . . . . . . . . . . . . . . . . . Average Backups 10 | 2 8 13 12 10 10 11 12 11 11 12 12 12 12 12 13 8 3 2 4 5 5 9 9 6 9 13 17 17 17 Power . | 1 2 1 1 1 1 1 1 1 1 1 1 . 1 1 1 . . . . 1 1 1 1 . 1 . . . . Propulsion . | . . . . . . 1 1 1 . . 1 1 1 . . . . . . . . 1 1 . . . 1 1 2 Utility 4 | . 1 4 2 2 3 2 4 3 4 6 5 5 4 5 6 3 1 . 1 2 2 3 2 2 6 7 6 9 7 Weapon 4 | 1 3 7 8 7 5 6 5 5 5 5 5 5 5 6 6 4 1 . . . . 2 4 . 1 3 8 6 7 Tool/Special . | . . . . . . . . . . . . . . . . . . . . . . . . . . . . . . Unused Backups 65 | . 4 3 3 1 3 3 . . 4 1 3 2 3 3 . 5 . . 3 . 2 . . 5 . 2 1 7 7 Power 9 | . 2 . 2 . . 1 . . . 1 . . 1 1 . . . . . . . . . . . . . . 1 Propulsion 14 | . . . . . . . . . 2 . 2 . 2 . . 3 . . 1 . 1 . . 1 . 2 . . . Utility 17 | . . 3 1 . . 1 . . 2 . . . . 1 . 1 . . 2 . 1 . . 2 . . . 2 1 Weapon 25 | . 2 . . 1 3 1 . . . . 1 2 . 1 . 1 . . . . . . . 2 . . 1 5 5 Tool/Special . | . . . . . . . . . . . . . . . . . . . . . . . . . . . . . . Average Slot Usage (%) 91 | . 100 100 100 100 90 95 90 99 98 99 99 99 98 91 85 86 80 64 68 91 91 88 96 93 89 88 84 75 78 Engine 2 | . 14 14 14 14 9 1 . 6 6 3 . 2 7 3 . . . . . . . . . . . . . . . Core 3 | . . . . . . 7 9 2 . . . 4 1 6 6 6 5 5 11 11 9 2 5 5 . . . . . Reactor 3 | . . . . . . . . . . 3 7 5 3 2 6 3 5 3 . . . 6 4 2 5 8 9 8 10 Treads 12 | . 28 28 28 28 23 27 27 26 23 21 14 26 25 14 13 11 11 5 3 . . . . . . . . . . Leg 7 | . . . . . . . . . . . . . . . . . . . 9 17 17 21 21 18 21 21 19 20 17 Device 12 | . 14 . . . 6 8 . 4 8 . 7 9 13 13 12 16 15 13 11 10 11 15 20 21 26 23 22 15 18 Storage 6 | . 14 14 14 14 9 9 9 9 7 7 7 6 6 6 6 2 . . . . 2 5 5 7 5 4 4 4 4 Processor 9 | . . . . . . 3 9 9 15 19 15 13 13 13 13 9 11 14 17 17 12 8 5 5 5 4 6 8 11 Hackware 1 | . . . . . . . . . . . . . . . . . . . . 5 9 5 5 3 . . . . . Protection 8 | . . 13 14 14 15 11 9 13 12 18 14 9 5 6 6 8 11 7 9 5 5 5 9 4 5 2 3 4 2 Energy Gun 5 | . 2 13 14 14 15 4 . . . . . 3 19 14 13 10 5 . . . 5 5 5 7 10 6 . . . Energy Cannon 3 | . . . . . . . . . . . . . . 3 6 11 11 5 1 5 5 5 4 7 10 9 8 7 8 Ballistic Gun 4 | . 25 14 14 14 12 7 . . . . 13 15 . 1 . . . . . 5 1 4 8 . . . . . . Slashing Weapon 1 | . . . . . . 1 . . 3 6 3 . . . . . . . . . . . . . . 2 9 4 4 Piercing Weapon 3 | . . . . . . 10 27 25 18 14 6 . . . . . . . . . . . . 2 . . . . . Peak Build Rating 199 | 7 9 10 13 13 22 44 44 40 45 53 58 67 64 107 109 123 120 104 92 104 127 127 121 145 140 159 164 183 199 Average Rating 87 | 4 7 9 11 12 18 35 43 33 39 46 53 64 59 89 107 117 110 78 81 96 113 124 114 127 138 150 157 172 189 On Entrance 75 | . 7 9 10 13 13 22 44 32 34 40 52 56 60 62 107 107 120 104 78 88 104 127 121 98 136 140 129 155 182 Naked Turns . | . . . . . . . . . . . . . . . . . . . . . . . . . . . . . . Heaviest Build 169 | 13 28 30 30 30 37 52 48 47 53 107 86 96 72 83 83 118 79 68 43 63 90 99 88 113 121 169 147 149 160 Greatest Support 210 | 40 40 40 40 40 62 62 62 60 60 60 79 107 116 160 160 160 160 160 90 110 115 115 115 120 120 148 135 210 210 Greatest Overweight (x) 11 | . . . . . . . . 1 1 7 6 . . 5 . . . 11 1 . . . . 3 1 1 1 . 1 Average Overweight (x) . | . . . . . . . . . . . 3 . . . . . . . . . . . . . . . . . . Largest Inventory Capacity 20 | 8 15 15 15 15 15 15 15 15 15 15 15 15 15 15 15 15 5 5 5 5 10 10 10 10 10 20 20 20 20 Average Capacity 13 | 7 10 15 15 15 15 15 15 15 15 15 15 15 15 15 15 10 5 5 5 5 7 10 10 10 10 16 20 20 20 Most Carried 20 | 4 15 15 15 15 15 15 15 15 15 15 15 15 15 15 15 15 5 5 5 5 10 10 10 10 10 20 20 20 20 Average Carried 12 | 2 8 13 14 14 14 14 14 14 14 14 14 14 14 14 15 9 4 2 4 5 6 9 9 9 9 14 17 19 19 Final Capacity 20 | 8 15 15 15 15 15 15 15 15 15 15 15 15 15 15 15 5 5 5 5 5 10 10 10 10 10 20 20 20 20 Final Carried 20 | 4 15 13 15 14 15 15 15 14 15 15 15 15 15 15 15 5 5 4 5 5 10 10 10 10 10 19 20 20 15 Class Distribution -------------------- 23% | Scavenger-Tank 18% | Scavenger-Mutant 15% | Scavenger-Skirmisher 14% | Mutant 4% | Tank 4% | Scavenger-Gladiator 3% | Commander-Gunner 3% | Skirmisher 3% | Scavenger-Assassin Dominant Class ---------------- Mutant | -10/Materials Mutant | -10/Mines Mutant | -10/Exiles Mutant | -9/Mines Scavenger-Tank | -8/Materials Commander-Mutant | -8/Garrison Mutant | -8/Materials Scavenger-Mutant | -8/Garrison Scavenger-Mutant | -7/Factory Scavenger-Mutant | -7/Garrison Tank | -7/Factory Skirmisher | -6/Factory Commander-Gunner | -6/Extension Scavenger-Tank | -6/Cetus Scavenger-Tank | -6/Archives Scavenger-Tank | -5/Factory Scavenger-Mutant | -5/Upper Caves Scavenger-Mutant | -5/Upper Caves Scavenger-Mutant | -5/Zhirov Scavenger-Skirmisher | -4/Proximity Caves Scavenger-Skirmisher | -4/Factory Scavenger-Skirmisher | -4/Upper Caves Scavenger-Tank | -4/Upper Caves Scavenger-Skirmisher | -4/Warlord Scavenger-Tank | -3/Proximity Caves Scavenger-Tank | -3/Research Scavenger-Gladiator | -3/Quarantine Scavenger-Skirmisher | -2/Research Scavenger-Assassin | -1/Access Resources | -11 -10 -10 -10 -9 -8 -8 -8 -8 -7 -7 -7 -6 -6 -6 -6 -5 -5 -5 -5 -4 -4 -4 -4 -4 -3 -3 -3 -2 -1 ----------- Run | Yrd Mat Min Exi Min Mat Gar Mat Gar Fac Gar Fac Fac Ext Cet Arc Fac Upp Upp Zhi Pro Fac Upp Upp War Pro Res Qua Res Acc Matter Collected 7818 | 217 118 103 . 12 107 690 104 742 199 323 433 1008 216 119 84 265 210 172 247 267 346 273 57 350 30 295 183 174 474 Remotely 905 | . . . . . . 197 . 116 . . 46 518 . . . 28 . . . . . . . . . . . . . Salvage Created 15172 | 67 275 333 . 48 214 938 211 974 516 1083 809 782 515 157 433 1541 171 431 374 250 582 562 72 235 159 821 336 128 2155 Parts 739 | 9 21 19 . 1 15 61 11 46 35 44 46 38 19 5 22 56 11 24 7 6 21 22 . 3 5 47 23 3 119 Haulers Intercepted 5 | . . . . . 1 . . . . . . 1 . . . 1 . . . . . . . . . 1 . 1 . Recyclers Shooed 6 | . . . . . 1 . . . . . . . 3 . . 1 . . . . . . . . . . . . 1 Parts Field Recycled 12 | . . . . . . . . . . . . . . . . . . . . . . 9 . 3 . . . . . Retrieved Matter 171 | . . . . . . . . . . . . . . . . . . . . . . 60 . 111 . . . . . Parts Self-Destructed 58 | . . . . . . . . . . . . . . . . . 8 16 5 4 . 19 1 . 5 . . . . Prevented 6 | . . . . . . . . . . . . . . . . . . . . . . 6 . . . . . . . Kills | -11 -10 -10 -10 -9 -8 -8 -8 -8 -7 -7 -7 -6 -6 -6 -6 -5 -5 -5 -5 -4 -4 -4 -4 -4 -3 -3 -3 -2 -1 ------- Run | Yrd Mat Min Exi Min Mat Gar Mat Gar Fac Gar Fac Fac Ext Cet Arc Fac Upp Upp Zhi Pro Fac Upp Upp War Pro Res Qua Res Acc Combat Hostiles Destroyed 284 | . 7 10 . 1 3 36 4 24 8 17 9 10 10 2 2 30 8 15 . 2 10 13 . 2 4 18 5 . 34 Melee 46 | . . . . . . 3 4 11 8 14 3 . . . . . . . . . . . . . . . 3 . . Guns 69 | . 7 6 . 1 3 13 . . . . 6 6 5 1 1 6 . . . 1 2 9 . 2 . . . . . Cannons 83 | . . . . . . . . . . . . . . 1 1 13 3 6 . 1 7 3 . . 4 18 2 . 24 AOE 76 | . . 4 . . . 20 . 13 . 3 . 4 4 . . 9 5 8 . . 1 . . . . . . . 5 Classes Destroyed 24 | 2 3 1 . . 2 4 . 2 1 . 2 . 1 . . 1 . 2 . . 1 . . 1 . . 1 . . Worker 9 | . . . . . . . . . . . 2 . . . . 1 . . . . 1 . . . . 1 . . 4 Builder 7 | . . . . . . . . . 1 . 2 . . . . 1 . . . . . . . . . . 1 . 2 Tunneler 6 | 1 . . . . . . . . 2 . 1 . . . . 2 . . . . . . . . . . . . . Hauler 5 | . . . . . 1 . . . . . . 1 . . . 1 . . . . . . . . . 1 . 1 . Recycler 7 | 1 . . . . . . . . 1 . 2 2 . . . 1 . . . . . . . . . . . . . Operator 10 | . . . . . . . . . . . 1 . . . 8 . . . . . . . . . . . . 1 . Drone 2 | . . . . . . . . . . . . . . . . . . . . . 1 . . . 1 . . . . Turret 1 | . . . . . . . . . . . . . . . . . . 1 . . . . . . . . . . . Watcher 6 | . 1 . . . . . . . . . 2 1 . 1 . 1 . . . . . . . . . . . . . Swarmer 90 | . 3 3 . . . 17 . 4 3 3 . 4 4 . . 10 5 5 . . . 10 . . 1 8 . . 10 Saboteur 1 | . . . . . . . . . . . . . . . . 1 . . . . . . . . . . . . . Grunt 73 | . 4 6 . 1 . 4 2 13 . 7 4 . 3 . . 11 . 3 . . 6 2 . 1 1 2 . . 3 Brawler 5 | . . . . . . . . 2 . . . . . . . 3 . . . . . . . . . . . . . Duelist 9 | . . . . . . 4 . . . 1 . . . . . 1 . . . . 1 . . 1 . . . . 1 Researcher 1 | . . . . . . . . . . . . . . . . . . . . . . . . . . . 1 . . Sentry 39 | . . . . . 3 5 2 3 4 5 3 3 3 . 2 1 . 1 . . 1 . . . 1 1 . . 1 Demolisher 1 | . . . . . . 1 . . . . . . . . . . . . . . . . . . . . . . . Specialist 3 | . . . . . . 3 . . . . . . . . . . . . . . . . . . . . . . . Hunter 22 | . . . . . . 2 . . . 1 1 . . . . 1 . 2 . . 1 . . . . 4 2 . 8 Programmer 31 | . . . . . . . . 2 1 . 1 3 . . . 2 3 . . 2 1 . . . . 3 3 . 10 Behemoth 3 | . . . . . . . . . . . . . 1 . . . . . . . . 1 . . . . . . 1 Cetus Guard 2 | . . . . . . . . . . . . . . 2 . . . . . . . . . . . . . . . Decomposer 1 | . . . . . . . . . . . . . . . . . . 1 . . . . . . . . . . . Tinkerer 1 | . . . . . . . . . . . . . . . . . . . . . . . . 1 . . . . . Master Thief 4 | . . . . . . . . . . . . . . . . . . 4 . . . . . . . . . . . Assembled 1 | . . 1 . . . . . . . . . . . . . . . . . . . . . . . . . . . Savage 1 | . . . . . . . . . . . . . . . . 1 . . . . . . . . . . . . . Guerrilla 1 | . . . . . . . . . . . . . . . 1 . . . . . . . . . . . . . . Best Kill Streak 9 | 1 4 3 . 1 1 8 4 4 4 5 6 4 4 2 5 7 5 4 . 2 5 4 . 2 3 6 2 1 9 Combat Bots Only 8 | . 4 3 . 1 1 8 4 4 4 5 2 4 4 1 1 5 5 4 . 2 5 4 . 2 3 6 2 . 7 Max Kills in Single Turn 5 | 1 1 2 . 1 1 4 1 4 1 1 2 2 4 1 2 3 5 2 . 1 2 2 . 1 1 1 1 1 3 Gunslinging . | . . . . . . . . . . . . . . . . . . . . . . . . . . . . . . Exploded 5 | . . 2 . . . 4 . 4 . 1 . 2 4 . . 3 5 2 . . 1 . . . . . . . 2 Melee 1 | . . . . . . 1 1 1 1 1 1 . . . . . . . . . . . . . . . 1 . . Uniques/NPCs Destroyed 1 | . . . . . . . . . . . . . . . . . . . . . . . . 1 . . . . . LV-01A (-4/Warlord) Combat | -11 -10 -10 -10 -9 -8 -8 -8 -8 -7 -7 -7 -6 -6 -6 -6 -5 -5 -5 -5 -4 -4 -4 -4 -4 -3 -3 -3 -2 -1 -------- Run | Yrd Mat Min Exi Min Mat Gar Mat Gar Fac Gar Fac Fac Ext Cet Arc Fac Upp Upp Zhi Pro Fac Upp Upp War Pro Res Qua Res Acc Hostile Shots Fired 2475 | . 43 34 . 5 16 82 31 61 140 246 119 148 142 44 5 171 84 65 . 4 94 90 152 6 13 209 62 . 409 Missed 808 | . 10 7 . 1 2 13 6 19 47 80 42 48 43 13 2 53 24 17 . 2 37 35 66 3 4 73 24 . 137 Deflected 12 | . . . . . . . . . . . . . . . . . . . . . . . . . . 4 1 . 7 Hits 1667 | . 33 27 . 4 14 69 25 42 93 166 77 100 99 31 3 118 60 48 . 2 57 55 86 3 9 136 38 . 272 Melee 24 | . . 3 . . . 4 . . . 3 . . . . . 4 . 5 . . . . . . . . . . 5 Projectile 1643 | . 33 24 . 4 14 65 25 42 93 163 77 100 99 31 3 114 60 43 . 2 57 55 86 3 9 136 38 . 267 AOE 6 | . . . . . . 2 . . . . 1 . . . . . . . . . . . . 3 . . . . . Critical Strikes 68 | . 1 1 . . . 6 1 5 . 3 . 1 4 3 2 3 5 1 . . 2 1 4 . . 6 2 . 17 Actively Blocked 9 | . . . . . . 1 . . . . . . . . . . . . . . . . . . . . . . 8 Part Disruptions 3 | . . . . . . . . . . . . . . . . . . . . . . . . . . . 1 . 2 Damage Taken 25112 | . 309 410 . 46 205 1139 379 688 864 1429 582 756 1418 724 100 2111 1051 1001 . 42 1307 989 1041 143 219 1764 796 . 5599 Core 2186 | . 27 58 . . 26 88 42 119 105 78 38 99 58 75 12 154 58 83 . 21 64 111 90 . 25 174 15 . 566 Absorbed by Shields 2265 | . . . . . . . . . . . 117 164 . 159 . . . . . . . . 403 . . 1422 . . . Redirected to Shielding 28 | . . 12 . . 5 11 . . . . . . . . . . . . . . . . . . . . . . . Ignored by Resistances 319 | . . . . . . . . . 3 164 76 30 . . . 16 . . . . . . 30 . . . . . . Regen/Repaired (Parts) 551 | . . . . . . . . . . . . 114 . . . . . . . . . . . 394 . . . 43 . Core Remaining (%) 74 | 100 . . . 66 . . . 50 . . 68 . . . 71 . . . . 68 . . . . 74 . 73 100 . Volleys Fired 809 | 2 27 20 . 3 11 41 . 16 . 8 21 32 41 15 21 57 13 49 9 4 26 36 66 8 41 58 16 15 153 Largest 4 | 2 2 2 . 2 3 3 . 3 . 1 3 3 3 3 3 4 4 2 1 4 4 3 4 4 4 3 2 3 2 Hottest 480 | 60 60 65 . 65 128 116 . 94 . 33 91 165 165 240 260 480 360 137 98 221 298 215 240 396 396 308 220 237 195 Shots Fired 1596 | 4 54 39 . 5 33 104 . 31 . 8 63 84 113 41 56 171 42 53 11 18 78 85 78 28 93 108 27 18 151 Gun 810 | 4 54 37 . 5 33 93 . 10 . 5 63 78 112 35 35 85 14 . . 4 24 60 19 21 14 1 . 3 1 Cannon 719 | . . . . . . . . . . . . . . 6 21 80 27 40 11 14 54 25 59 7 79 107 27 15 147 Launcher 67 | . . 2 . . . 11 . 21 . 3 . 6 1 . . 6 1 13 . . . . . . . . . . 3 Special . | . . . . . . . . . . . . . . . . . . . . . . . . . . . . . . Kinetic 393 | 2 45 20 . 3 14 62 . 10 . 5 63 75 . . . . . . . 13 34 36 10 . . . . 1 . Thermal 1043 | 2 9 . . . 6 31 . . . . . 3 112 41 56 165 41 40 11 5 36 24 68 28 93 108 27 17 120 Explosive 67 | . . 2 . . . 11 . 21 . 3 . 6 1 . . 6 1 13 . . . . . . . . . . 3 Electromagnetic 93 | . . 17 . 2 13 . . . . . . . . . . . . . . . 8 25 . . . . . . 28 Robot Hit Streak 30 | 3 9 10 . 2 14 19 . 5 . 1 19 30 12 8 8 18 5 6 12 3 7 8 11 4 11 14 7 9 16 Robot Miss Streak 7 | . 3 2 . 1 2 3 . 4 . . 2 2 3 2 6 5 7 3 . 2 3 5 4 4 4 3 2 3 3 Penetration Max 1 | . . . . . . . . . . . 1 1 . . . . . . . . 1 . . . . . . . . Secondary Targets 6 | . 1 1 . . . 1 . . . . 1 . 1 . . . . . . . . . . 1 . . . . . Max Gunslinging Chain 1 | . 1 1 . . . 1 . . . . 1 . 1 . . . . . . . . . . 1 . . . . . Capacitor 156 | . . . . . . . . . . . . . . . . . . . . . . . . . . . . 10 146 Autonomous 11 | . . . . . . 11 . . . . . . . . . . . . . . . . . . . . . . . Shots Hit Robots 1097 | 3 36 28 . 3 25 72 8 43 25 64 61 67 81 32 34 103 23 30 11 6 35 48 11 25 18 72 23 9 101 Core Hits 603 | 3 18 19 . 2 11 60 6 47 14 32 24 23 35 16 27 74 9 27 5 4 21 21 3 9 7 27 9 2 48 Critical Kills 14 | . . . . . . . . . . . 3 3 . . . . . 1 . 1 . 3 . . . . . . 3 Critical Parts Destroyed 6 | . . . . . . 1 . 1 . . 4 . . . . . . . . . . . . . . . . . . Critical Strikes 68 | . . . . . . 3 3 3 2 17 9 3 4 1 . . . 1 . 2 3 5 . 3 . 1 2 . 6 Burn 7 | . . . . . . . . . . . . . 4 1 . . . . . . . 1 . 1 . . . . . Meltdown 4 | . . . . . . . . . . . . . . . . . . 1 . . . . . . . . . . 3 Destroy 16 | . . . . . . 1 . 1 . . 7 3 . . . . . . . 1 . 3 . . . . . . . Blast 3 | . . . . . . . . . . . . . . . . . . . . 1 2 . . . . . . . . Corrupt 4 | . . . . . . . . . . . . . . . . . . . . . 1 1 . . . . . . 2 Sever 19 | . . . . . . . . . . 13 2 . . . . . . . . . . . . . . 1 2 . 1 Impale 13 | . . . . . . 2 3 2 2 4 . . . . . . . . . . . . . . . . . . . Sunder 2 | . . . . . . . . . . . . . . . . . . . . . . . . 2 . . . . . Melee Attacks 367 | . . . . . . 36 11 99 43 102 22 10 . . . . . . . . . . . 9 . 7 23 1 4 Impact 5 | . . . . . . 5 . . . . . . . . . . . . . . . . . . . . . . . Slashing 162 | . . . . . . 8 . . 26 74 15 4 . . . . . . . . . . . . . 7 23 1 4 Piercing 191 | . . . . . . 23 11 99 17 28 7 6 . . . . . . . . . . . . . . . . . Entropic 9 | . . . . . . . . . . . . . . . . . . . . . . . . 9 . . . . . Sneak Attacks 31 | . . . . . . . 1 . 4 . 5 2 . . . . . . . . . . . 9 . 4 3 . 3 Combat Hostiles 1 | . . . . . . . . . . . 1 . . . . . . . . . . . . . . . . . . Follow-up Attacks 50 | . . . . . . 2 2 14 7 19 4 . . . . . . . . . . . . . . 1 1 . . Damage Inflicted 44345 | 27 333 470 . 23 301 2820 252 2414 928 2631 1931 2095 1907 838 1243 5031 1241 2087 406 175 1467 1173 211 2002 599 3488 1452 454 6346 Guns 11650 | 27 321 313 . 23 288 1284 . 40 . 41 1227 1521 1702 609 650 1584 161 . . 65 292 737 176 348 185 . . 56 . Cannons 15568 | . . . . . . . . . . . . . . 229 593 2512 761 754 406 110 964 436 35 124 414 3025 412 337 4456 Explosions 7988 | . . 155 . . . 1317 . 1341 . 232 . 390 181 . . 932 319 1333 . . 166 . . . . . 84 . 1538 Melee 8989 | . . . . . . 219 249 1033 928 2358 683 169 . . . . . . . . . . . 1530 . 451 956 61 352 Ramming 150 | . 12 2 . . 13 . 3 . . . 21 15 24 . . 3 . . . . 45 . . . . 12 . . . Kinetic 5595 | 6 257 108 . 13 102 963 . 40 . 41 1227 1489 . . . . . . . 141 626 516 66 . . . . . . Thermal 20722 | 21 64 20 . . 67 321 . . . . . 32 1702 838 1243 4203 922 754 406 34 684 221 145 472 599 3025 496 393 4060 Explosive 7327 | . . 135 . . . 1317 . 1341 . 232 . 390 181 . . 825 319 1333 . . . . . . . . . . 1254 Electromagnetic 1562 | . . 205 . 10 119 . . . . . . . . . . . . . . . 112 436 . . . . . . 680 Impact . | . . . . . . . . . . . . . . . . . . . . . . . . . . . . . . Slashing 4950 | . . . . . . . . . 595 1806 560 169 . . . . . . . . . . . . . 451 956 61 352 Piercing 2509 | . . . . . . 219 249 1033 333 552 123 . . . . . . . . . . . . . . . . . . Entropic 1530 | . . . . . . . . . . . . . . . . . . . . . . . . 1530 . . . . . Highest Corruption 16 | . . . . . . . . 2 . . 1 1 3 10 10 6 14 14 14 14 . . 4 14 . 4 6 . 16 Average Corruption 5 | . . . . . . . . 2 . . 1 1 2 8 7 3 11 14 14 14 . . 4 6 . 4 4 . 5 Corruption Purged 10 | . . . . . . . . . . . . . . . 10 . . . . . . . . . . . . . . Corruption Blocked . | . . . . . . . . . . . . . . . . . . . . . . . . . . . . . . Effects 244 | . . . . . . . . 19 . . . 4 24 16 12 14 20 25 18 41 . . 10 1 . 4 15 . 21 Message Errors 66 | . . . . . . . . 7 . . . 1 5 4 8 3 6 7 5 11 . . 1 . . 1 5 . 2 Matter Fused 58 | . . . . . . . . 1 . . . 2 5 4 2 5 5 3 5 16 . . 2 . . 1 3 . 4 Heat Flow Errors 21 | . . . . . . . . 1 . . . . 2 1 1 1 2 3 3 3 . . 2 1 . 1 . . . Energy Discharges 21 | . . . . . . . . 4 . . . . 4 1 . . . 3 . 4 . . 1 . . . 2 . 2 Parts Rejected 4 | . . . . . . . . . . . . . . . . 1 . 2 . . . . . . . . . . 1 Parts Fused 2 | . . . . . . . . . . . . . . . . . . . . . . . . . . . . . 2 Data Loss (minor) 35 | . . . . . . . . 3 . . . . 3 5 . 1 4 1 3 5 . . 2 . . . 4 . 4 Data Loss (major) 5 | . . . . . . . . . . . . 1 1 . . . . 1 . . . . 1 . . 1 . . . Misfires 10 | . . . . . . . . . . . . . 1 . . 1 2 2 2 2 . . . . . . . . . Alerts 5 | . . . . . . . . 2 . . . . . 1 . . . 1 . . . . . . . . 1 . . Misdirections 4 | . . . . . . . . . . . . . . . . . 1 . . . . . . . . . . . 3 Weapon Failures 13 | . . . . . . . . 1 . . . . 3 . 1 2 . 2 . . . . 1 . . . . . 3 Overload Shots 10 | . . . . . . . . . . . . . . 1 . 9 . . . . . . . . . . . . . Overflow Damage 2156 | . . . . . . 21 . . 78 45 66 78 . . 19 121 78 216 98 . . 31 . 354 11 161 213 15 551 Projectiles 665 | . . . . . . . . . . . . . . . 19 32 78 27 98 . . 31 . . 11 76 . 14 279 Explosions 458 | . . . . . . 21 . . . 9 . 22 . . . 89 . 189 . . . . . . . . 39 . 89 Melee 1033 | . . . . . . . . . 78 36 66 56 . . . . . . . . . . . 354 . 85 174 1 183 Knockbacks 12 | . . . . . . . . . . . . . . . . . . . . . 12 . . . . . . . . Impact . | . . . . . . . . . . . . . . . . . . . . . . . . . . . . . . Kinetic 10 | . . . . . . . . . . . . . . . . . . . . . 10 . . . . . . . . Secondary 2 | . . . . . . . . . . . . . . . . . . . . . 2 . . . . . . . . Self-Inflicted Damage 601 | . . 23 . . . . . 36 . 32 . 56 . . . . . 201 . . 109 . . . . . 63 . 81 Shots 14 | . . 1 . . . . . 2 . 2 . 1 . . . . . 4 . . 1 . . . . . 1 . 2 Rammed 18 | . 5 1 . . 4 . 1 . . . 2 3 1 . . 1 . . . . . . . . . . . . . Targets Rammed 20 | . 5 1 . . 4 . 1 . . . 2 3 1 . . 1 . . . . 1 . . . . 1 . . . Kicked 2 | . . . . . . . . . . . . . . . . . . . . . 1 . . . . 1 . . . Crushed . | . . . . . . . . . . . . . . . . . . . . . . . . . . . . . . Highest Temperature 872 | 20 40 169 . 34 108 237 19 153 2 44 226 194 72 100 258 872 300 240 252 198 340 216 148 360 333 240 . 168 359 Average Temperature 75 | 15 17 60 . 16 44 53 7 58 2 14 89 52 25 28 56 114 111 65 64 70 90 49 61 126 86 46 . 62 114 Received Heat Transfer 4413 | . 99 195 . 24 90 342 225 324 162 522 188 126 426 48 . 330 370 36 . . 348 72 38 . 30 184 . . 234 Effects 10 | . . . . . . . . . . . . . . . . 7 . . . . . . . . . . . . 3 Shutdowns 3 | . . . . . . . . . . . . . . . . 3 . . . . . . . . . . . . . Energy Bleed 2 | . . . . . . . . . . . . . . . . 1 . . . . . . . . . . . . 1 Interference 5 | . . . . . . . . . . . . . . . . 3 . . . . . . . . . . . . 2 Siege Activations 1 | . . . . . . . . . . . . . . . . . . 1 . . . . . . . . . . . Total Turns 5 | . . . . . . . . . . . . . . . . . . 5 . . . . . . . . . . . Longest Duration 5 | . . . . . . . . . . . . . . . . . . 5 . . . . . . . . . . . Martial Activations 2 | . . . . . . . . . . . . . . . . . . . . . . . . . . 1 1 . . Total Turns 68 | . . . . . . . . . . . . . . . . . . . . . . . . . . 50 18 . . Longest Duration 50 | . . . . . . . . . . . . . . . . . . . . . . . . . . 50 18 . . Shielding Activations 4 | . . . . . . . . . . . . . . . . . . . . . . . . . . . . . 4 Total Turns 29 | . . . . . . . . . . . . . . . . . . . . . . . . . . . . . 29 Longest Duration 11 | . . . . . . . . . . . . . . . . . . . . . . . . . . . . . 11 Robots Disrupted 1 | . . . . . . . . . . . . . . . . . . . . . . . . . . . . . 1 Combat Hostiles 1 | . . . . . . . . . . . . . . . . . . . . . . . . . . . . . 1 Robots Corrupted 3 | . . . . . . . . . . . . . . . . . . . . . . 1 . . . . . . 2 Combat Hostiles 3 | . . . . . . . . . . . . . . . . . . . . . . 1 . . . . . . 2 Parts Fried 5 | . . . . . . . . . . . . . . 1 . . . . . . 1 1 . . . . . . 2 Impact Corruptions . | . . . . . . . . . . . . . . . . . . . . . . . . . . . . . . Robots Melted 7 | . . . . . . . . . . . . . 1 . . 2 . 1 . . . . . . . . . . 3 Combat Hostiles 7 | . . . . . . . . . . . . . 1 . . 2 . 1 . . . . . . . . . . 3 Parts Melted 27 | . . . . . . 1 . . . . . . 4 . 6 4 2 4 . . . . . . . . . . 6 Heat Transferred 21684 | 50 150 50 . . 148 703 . . . . . 74 3515 1440 1514 5061 960 1150 474 50 1000 600 287 657 259 . 50 296 3196 Parts Sabotaged 6 | . . . . . . . . . . . . . . . . 2 . . . . . . . . . . . . 4 Parts Stolen 2 | . . . . . . . . . . . . . . . . . . 2 . . . . . . . . . . . Parts Stripped . | . . . . . . . . . . . . . . . . . . . . . . . . . . . . . . Power Chain Reactions 4 | . . 1 . . . . . . . . . . . . . . . . . . . . . . . . 1 . 2 Alert | -11 -10 -10 -10 -9 -8 -8 -8 -8 -7 -7 -7 -6 -6 -6 -6 -5 -5 -5 -5 -4 -4 -4 -4 -4 -3 -3 -3 -2 -1 ------- Run | Yrd Mat Min Exi Min Mat Gar Mat Gar Fac Gar Fac Fac Ext Cet Arc Fac Upp Upp Zhi Pro Fac Upp Upp War Pro Res Qua Res Acc Maximum Alert Level 4 | . . . . . . 4 2 4 3 4 3 2 2 2 1 3 . . . . 1 . . . . 2 1 . 3 Low Security (%) 30 | 100 100 100 . 100 100 19 . . . . . . 1 . 70 14 . . . . 83 . . . . . 54 100 42 Level 1 16 | . . . . . . 3 . . . . . 73 9 11 29 42 . . . . 16 . . . . 28 45 . 10 Level 2 26 | . . . . . . 28 100 28 1 14 15 26 88 88 . 40 . . . . . . . . . 71 . . 38 Level 3 19 | . . . . . . 35 . 22 98 58 84 . . . . 3 . . . . . . . . . . . . 9 Level 4 6 | . . . . . . 12 . 48 . 26 . . . . . . . . . . . . . . . . . . . Level 5 . | . . . . . . . . . . . . . . . . . . . . . . . . . . . . . . High Security . | . . . . . . . . . . . . . . . . . . . . . . . . . . . . . . Max Security . | . . . . . . . . . . . . . . . . . . . . . . . . . . . . . . Peak Influence 1494 | 5 140 151 . 54 31 1355 688 1494 784 1406 828 475 654 538 345 894 . . . . 232 . . . . 600 253 74 951 Initial 784 | . . . . . 16 10 660 440 784 539 737 369 223 359 179 . . . . . 11 . . . . 600 223 74 . Average 458 | 1 44 70 . 21 13 694 662 981 734 964 756 366 495 463 118 368 . . . . 56 . . . . 449 191 12 340 Influence Increases 13429 | 10 196 297 . 84 114 1445 137 1084 292 917 552 602 1137 326 250 1332 190 277 15 55 444 486 65 113 65 1154 256 42 1492 Destroy 0b10 Robot/C 6860 | . 140 180 . 80 60 920 80 480 160 460 320 280 560 160 80 640 160 240 . 40 220 300 . 80 60 360 120 . 680 Destroy 0b10 Robot/NC 330 | 10 5 . . . 5 . . 5 20 15 50 20 25 10 40 35 . . 15 5 5 . 5 . 5 10 5 10 30 Destroy Leader 1012 | . 32 40 . . 32 30 20 40 60 30 94 104 62 . . 94 30 30 . 10 50 30 . . . 62 20 2 140 Allied During Kill 754 | . . . . 4 . 74 3 . . 15 46 16 367 119 40 16 . 7 . . 8 6 . 33 . . . . . Successful Hack 257 | . 19 12 . . . 21 4 . 18 14 21 47 48 . . . . . . . . . . . . . 26 . 27 Disable Machine 630 | . . 15 . . . 15 . 105 15 30 . 60 30 30 90 90 . . . . 45 . . . . . 45 15 45 Anti-Garrison Action 1000 | . . . . . . 250 . 250 . 200 . . . . . 300 . . . . . . . . . . . . . Destroy Structure 1056 | . . 20 . . 2 105 . 129 4 63 6 75 30 7 . 142 . . . . 116 . . . . 62 40 15 240 Advance Influence 600 | . . . . . . . . . . . . . . . . . . . . . . . . . . 600 . . . Partial Spotted 30 | . . . . . . 15 . . 15 . . . . . . . . . . . . . . . . . . . . Lose Combat Pursuer 900 | . . 30 . . 15 15 30 75 . 90 15 . 15 . . 15 . . . . . 150 60 . . 60 . . 330 Influence Decreases 12491 | 10 196 236 61 40 142 106 815 267 1016 281 1203 900 952 519 699 438 594 428 354 36 256 656 87 95 98 756 521 175 554 Entered New Map 4951 | . . . 61 . 28 6 695 237 710 231 669 386 234 283 270 . 332 94 339 . 8 78 8 15 33 . 175 59 . Time Decay 5974 | 10 196 226 . 30 114 . 30 . 286 . 474 494 498 206 409 348 222 254 15 36 172 538 59 80 65 386 326 116 384 Search Patrol Dispatched 300 | . . . . . . . . . . . . . . . . . . . . . . . . . . 300 . . . Lost Part 746 | . . 10 . 10 . 20 10 30 20 30 . 20 40 10 . 50 40 80 . . 56 40 20 . . 70 20 . 170 Lost Ally 520 | . . . . . . 80 80 . . 20 60 . 180 20 20 40 . . . . 20 . . . . . . . . Squads Dispatched 52 | . 2 . . . 1 . 3 . 2 . 8 7 4 . . 11 . . . . 2 . . . . 4 2 . 6 Investigation 10 | . . . . . . . . . 1 . 2 3 1 . . 1 . . . . 1 . . . . . 1 . . Extermination 15 | . . . . . . . . . 1 . 2 3 . . . 1 . . . . 1 . . . . 2 1 . 4 Reinforcement 15 | . 2 . . . . . 2 . . . 2 1 3 . . 2 . . . . . . . . . 2 . . 1 Assault 7 | . . . . . . . . . . . 2 . . . . 4 . . . . . . . . . . . . 1 Garrison 5 | . . . . . 1 . 1 . . . . . . . . 3 . . . . . . . . . . . . . Intercept . | . . . . . . . . . . . . . . . . . . . . . . . . . . . . . . Searches Triggered 2 | . . . . . . . . . . . . . . . . . . . . . . . . . . 2 . . . Construction Impeded 5 | . . . . . . . . . . . . . 2 . . 2 . . . . . . . . . . . . 1 Haulers Reinforced 2 | . . . . . . . . . . . . 1 . . . . . . . . . . . . . 1 . . . Active Scanning Responses . | . . . . . . . . . . . . . . . . . . . . . . . . . . . . . . Cargo Convoy Interrupts . | . . . . . . . . . . . . . . . . . . . . . . . . . . . . . . Stealth | -11 -10 -10 -10 -9 -8 -8 -8 -8 -7 -7 -7 -6 -6 -6 -6 -5 -5 -5 -5 -4 -4 -4 -4 -4 -3 -3 -3 -2 -1 --------- Run | Yrd Mat Min Exi Min Mat Gar Mat Gar Fac Gar Fac Fac Ext Cet Arc Fac Upp Upp Zhi Pro Fac Upp Upp War Pro Res Qua Res Acc Distress Signals 28 | . . . . . 1 . 1 . . . . . 1 2 1 2 . . . . 1 . . 2 . 4 1 5 7 Communications Jammed 19 | . . . . . . . . . . . . . . . . . . . . . . . . . . . . . 19 Distress Signals 19 | . . . . . . . . . . . . . . . . . . . . . . . . . . . . . 19 Times Spotted 507 | . 15 13 . 3 14 27 13 26 10 25 19 17 25 10 11 35 13 18 . 2 12 24 12 31 7 30 15 6 74 Peak Tracking Total 20 | . 3 5 . 2 5 6 7 4 4 6 4 4 4 5 1 7 5 4 . 2 5 4 8 10 3 7 10 2 20 Tactical Retreats 40 | . . 2 . . 1 1 2 3 . 2 1 . 1 . . 1 . . . . . 9 3 . . 3 . . 11 Traps | -11 -10 -10 -10 -9 -8 -8 -8 -8 -7 -7 -7 -6 -6 -6 -6 -5 -5 -5 -5 -4 -4 -4 -4 -4 -3 -3 -3 -2 -1 ------- Run | Yrd Mat Min Exi Min Mat Gar Mat Gar Fac Gar Fac Fac Ext Cet Arc Fac Upp Upp Zhi Pro Fac Upp Upp War Pro Res Qua Res Acc Traps Triggered 19 | . . . . . . 2 . 3 . 4 3 2 2 . . 3 . . . . . . . . . . . . . Indirectly . | . . . . . . . . . . . . . . . . . . . . . . . . . . . . . . Trap Hack Attempts . | . . . . . . . . . . . . . . . . . . . . . . . . . . . . . . Triggered . | . . . . . . . . . . . . . . . . . . . . . . . . . . . . . . Disarmed 1 | . . . . . . . . . . . . . 1 . . . . . . . . . . . . . . . . Reprogrammed . | . . . . . . . . . . . . . . . . . . . . . . . . . . . . . . Reused . | . . . . . . . . . . . . . . . . . . . . . . . . . . . . . . Traps Extracted . | . . . . . . . . . . . . . . . . . . . . . . . . . . . . . . Installed . | . . . . . . . . . . . . . . . . . . . . . . . . . . . . . . Triggered . | . . . . . . . . . . . . . . . . . . . . . . . . . . . . . . Machines | -11 -10 -10 -10 -9 -8 -8 -8 -8 -7 -7 -7 -6 -6 -6 -6 -5 -5 -5 -5 -4 -4 -4 -4 -4 -3 -3 -3 -2 -1 ---------- Run | Yrd Mat Min Exi Min Mat Gar Mat Gar Fac Gar Fac Fac Ext Cet Arc Fac Upp Upp Zhi Pro Fac Upp Upp War Pro Res Qua Res Acc Machines Disabled 54 | . . 1 . . . 5 . 10 1 4 . 4 2 2 6 8 . . . . 3 . . 1 . . 3 1 3 Max in Single Turn 2 | . . 1 . . . 1 . 1 1 1 . 2 . 1 1 2 . . . . 1 . . 1 . . 2 1 1 Garrison Access 2 | . . . . . . . . . . . . . . . . 2 . . . . . . . . . . . . . Garrison Relay 8 | . . . . . . 3 . 3 . 2 . . . . . . . . . . . . . . . . . . . Machines Repaired . | . . . . . . . . . . . . . . . . . . . . . . . . . . . . . . Machines Dismantled . | . . . . . . . . . . . . . . . . . . . . . . . . . . . . . . Machines Sabotaged . | . . . . . . . . . . . . . . . . . . . . . . . . . . . . . . Overloaded Fab Kills . | . . . . . . . . . . . . . . . . . . . . . . . . . . . . . . Hacking | -11 -10 -10 -10 -9 -8 -8 -8 -8 -7 -7 -7 -6 -6 -6 -6 -5 -5 -5 -5 -4 -4 -4 -4 -4 -3 -3 -3 -2 -1 --------- Run | Yrd Mat Min Exi Min Mat Gar Mat Gar Fac Gar Fac Fac Ext Cet Arc Fac Upp Upp Zhi Pro Fac Upp Upp War Pro Res Qua Res Acc Machines Accessed 75 | . 4 1 2 . 1 2 1 2 6 4 5 10 16 . . 3 . . 4 . 4 2 . 1 . . 5 . 2 Terminals 44 | . 3 1 . . . 2 . 2 2 4 . 5 16 . . 1 . . . . 2 . . . . . 4 . 2 Fabricators 8 | . . . . . . . . . 1 . 3 2 . . . 1 . . . . 1 . . . . . . . . Repair Stations 3 | . . . . . . . . . 1 . . 2 . . . . . . . . . . . . . . . . . Recycling Units 4 | . 1 . . . . . . . 1 . 1 1 . . . . . . . . . . . . . . . . . Scanalyzers 1 | . . . . . . . . . . . . . . . . . . . . . . . . . . . 1 . . Garrison Access 6 | . . . . . 1 . 1 . 1 . 1 . . . . 1 . . . . 1 . . . . . . . . Total Hacks 178 | . 9 4 2 . 1 3 1 3 12 9 13 30 36 . . 11 . . 17 . 6 4 . 1 . . 13 . 3 Successful 82 | . 5 2 2 . 1 2 1 . 4 1 4 16 10 . . 3 . . 17 . 3 4 . 1 . . 5 . 1 Failed 96 | . 4 2 . . . 1 . 3 8 8 9 14 26 . . 8 . . . . 3 . . . . . 8 . 2 Catastrophic 22 | . . . . . . . . 1 2 2 3 3 4 . . 1 . . . . 3 . . . . . 2 . 1 Database Lockouts . | . . . . . . . . . . . . . . . . . . . . . . . . . . . . . . Manual 49 | . 4 4 1 . . . . . 4 1 4 14 8 1 . 2 . . . . 2 . . . . . 3 . 1 Terminals 99 | . 8 4 . . . 3 . 3 4 9 . 14 36 . . 3 . . . . 3 . . . . . 9 . 3 Fabricators 24 | . . . . . . . . . 2 . 9 8 . . . 3 . . . . 2 . . . . . . . . Repair Stations 8 | . . . . . . . . . 2 . . 6 . . . . . . . . . . . . . . . . . Recycling Units 5 | . 1 . . . . . . . 1 . 1 2 . . . . . . . . . . . . . . . . . Scanalyzers 4 | . . . . . . . . . . . . . . . . . . . . . . . . . . . 4 . . Garrison Access 14 | . . . . . 1 . 1 . 3 . 3 . . . . 5 . . . . 1 . . . . . . . . Terminal Hacks 53 | . 3 2 2 . . 2 . . 1 1 . 5 9 . . 1 . . 17 . 1 4 . 1 . . 3 . 1 Record 11 | . . . 1 . . . . . . . . . . . . . . . 5 . . 3 . . . . 2 . . Part Schematic 4 | . . . . . . . . . . . . . . . . . . . 4 . . . . . . . . . . Robot Analysis 7 | . . 2 . . . . . . . . . . 1 . . . . . 4 . . . . . . . . . . Prototype ID Bank 6 | . 2 . . . . . . . . . . . . . . . . . 4 . . . . . . . . . . Open Door 10 | . . . . . . 1 . . . . . 1 6 . . . . . . . . 1 . 1 . . . . . Open DSF 1 | . . . . . . . . . . . . . . . . . . . . . 1 . . . . . . . . Branch Access Points 2 | . . . . . . . . . . . . 1 . . . . . . . . . . . . . . . . 1 Terminal Index 1 | . . . . . . . . . . . . 1 . . . . . . . . . . . . . . . . . Alert Level 1 | . . . . . . . . . . . . 1 . . . . . . . . . . . . . . . . . Disarm Traps 1 | . . . . . . . . . . . . . 1 . . . . . . . . . . . . . . . . Dispatch Records 1 | . . . . . . . . . 1 . . . . . . . . . . . . . . . . . . . . Maintenance Status 1 | . . . . . . . . . . . . . . . . . . . . . . . . . . . 1 . . Security Status 1 | . . . . . . . . . . . . 1 . . . . . . . . . . . . . . . . . Patrol Status 1 | . . . . . . . . . . . . . . . . 1 . . . . . . . . . . . . . Zone Layout 2 | . 1 . . . . . . . . . . . 1 . . . . . . . . . . . . . . . . Garrison Registry 1 | . . . . . . 1 . . . . . . . . . . . . . . . . . . . . . . . Patrol Navigation 1 | . . . . . . . . . . 1 . . . . . . . . . . . . . . . . . . . Proto ID Catalog 1 | . . . 1 . . . . . . . . . . . . . . . . . . . . . . . . . . Fabricator Hacks 9 | . . . . . . . . . 1 . 3 2 . . . 1 . . . . 2 . . . . . . . . Network Status 4 | . . . . . . . . . 1 . 1 1 . . . 1 . . . . . . . . . . . . . Load Schematic 1 | . . . . . . . . . . . . . . . . . . . . . 1 . . . . . . . . Build 4 | . . . . . . . . . . . 2 1 . . . . . . . . 1 . . . . . . . . Repair Station Hacks 3 | . . . . . . . . . . . . 3 . . . . . . . . . . . . . . . . . Scan Component 2 | . . . . . . . . . . . . 2 . . . . . . . . . . . . . . . . . Repair 1 | . . . . . . . . . . . . 1 . . . . . . . . . . . . . . . . . Recycling Unit Hacks 2 | . 1 . . . . . . . . . . 1 . . . . . . . . . . . . . . . . . Retrieve Matter 1 | . . . . . . . . . . . . 1 . . . . . . . . . . . . . . . . . Retrieve Components 1 | . 1 . . . . . . . . . . . . . . . . . . . . . . . . . . . . Scanalyzer 2 | . . . . . . . . . . . . . . . . . . . . . . . . . . . 2 . . Insert Component 2 | . . . . . . . . . . . . . . . . . . . . . . . . . . . 2 . . Garrison Access Hacks 3 | . . . . . 1 . 1 . 1 . . . . . . . . . . . . . . . . . . . . Unlock Access 3 | . . . . . 1 . 1 . 1 . . . . . . . . . . . . . . . . . . . . Unauthorized Hacks 10 | . 1 . . . . . . . 1 . 1 5 1 . . 1 . . . . . . . . . . . . . Terminals 4 | . 1 . . . . . . . . . . 2 1 . . . . . . . . . . . . . . . . Botnet 3 | . . . . . . . . . . . . 2 1 . . . . . . . . . . . . . . . . Skim 1 | . 1 . . . . . . . . . . . . . . . . . . . . . . . . . . . . Fabricators 4 | . . . . . . . . . . . 1 2 . . . 1 . . . . . . . . . . . . . Prioritize 2 | . . . . . . . . . . . 1 1 . . . . . . . . . . . . . . . . . Haulers 2 | . . . . . . . . . . . . 1 . . . 1 . . . . . . . . . . . . . Repair Stations 2 | . . . . . . . . . 1 . . 1 . . . . . . . . . . . . . . . . . Mechanics 1 | . . . . . . . . . 1 . . . . . . . . . . . . . . . . . . . . Patch 1 | . . . . . . . . . . . . 1 . . . . . . . . . . . . . . . . . Recycling Units . | . . . . . . . . . . . . . . . . . . . . . . . . . . . . . . Scanalyzers . | . . . . . . . . . . . . . . . . . . . . . . . . . . . . . . Garrison Access . | . . . . . . . . . . . . . . . . . . . . . . . . . . . . . . Data Cores Recovered 1 | . . . . . . . . . . . . . . . . . . . . . . . . . . . . 1 . Used . | . . . . . . . . . . . . . . . . . . . . . . . . . . . . . . Hacking Detections 61 | . 3 1 . . . 1 1 2 6 4 5 9 15 1 . 3 . . . . 3 . . . . . 5 . 2 Full Trace Events 7 | . . . . . . . . . 1 . 2 . 1 . . 1 . . . . 1 . . . . . 1 . . Feedback Events . | . . . . . . . . . . . . . . . . . . . . . . . . . . . . . . Feedback Blocked . | . . . . . . . . . . . . . . . . . . . . . . . . . . . . . . Robot Schematics Acquired . | . . . . . . . . . . . . . . . . . . . . . . . . . . . . . . Robots Built 5 | . . . . . . . . . . . 3 2 . . . . . . . . . . . . . . . . . Authchips . | . . . . . . . . . . . . . . . . . . . . . . . . . . . . . . Time 201 | . . . . . . . . . . . 67 134 . . . . . . . . . . . . . . . . . Total Robot Build Rating 20 | . . . . . . . . . . . 12 8 . . . . . . . . . . . . . . . . . Part Schematics Acquired 6 | . . . . . . . . . . . . . . . . . . . 4 . . . . . . . 2 . . Parts Built 3 | . . . . . . . . . . . 2 . . . . . . . . . 1 . . . . . . . . Authchips . | . . . . . . . . . . . . . . . . . . . . . . . . . . . . . . Time 210 | . . . . . . . . . . . 117 . . . . . . . . . 93 . . . . . . . . Total Part Build Rating 21 | . . . . . . . . . . . 14 . . . . . . . . . 7 . . . . . . . . Parts Repaired 1 | . . . . . . . . . . . . 1 . . . . . . . . . . . . . . . . . Time 32 | . . . . . . . . . . . . 32 . . . . . . . . . . . . . . . . . Parts Recycled . | . . . . . . . . . . . . . . . . . . . . . . . . . . . . . . Recycled Matter . | . . . . . . . . . . . . . . . . . . . . . . . . . . . . . . Retrieved Matter . | . . . . . . . . . . . . . . . . . . . . . . . . . . . . . . Retrieved Components 9 | . 9 . . . . . . . . . . . . . . . . . . . . . . . . . . . . Parts Scanalyzed 1 | . . . . . . . . . . . . . . . . . . . . . . . . . . . 1 . . Part Schematics Acquired . | . . . . . . . . . . . . . . . . . . . . . . . . . . . . . . Parts Damaged . | . . . . . . . . . . . . . . . . . . . . . . . . . . . . . . Bothacking | -11 -10 -10 -10 -9 -8 -8 -8 -8 -7 -7 -7 -6 -6 -6 -6 -5 -5 -5 -5 -4 -4 -4 -4 -4 -3 -3 -3 -2 -1 ------------ Run | Yrd Mat Min Exi Min Mat Gar Mat Gar Fac Gar Fac Fac Ext Cet Arc Fac Upp Upp Zhi Pro Fac Upp Upp War Pro Res Qua Res Acc Used RIF Installer . | . . . . . . . . . . . . . . . . . . . . . . . . . . . . . . Robots Hacked . | . . . . . . . . . . . . . . . . . . . . . . . . . . . . . . Non-combat . | . . . . . . . . . . . . . . . . . . . . . . . . . . . . . . Combat . | . . . . . . . . . . . . . . . . . . . . . . . . . . . . . . Robot Hacks Applied . | . . . . . . . . . . . . . . . . . . . . . . . . . . . . . . Relay Couplers Released 36 | . . . . . . 13 . 11 . 6 . . . . . 2 . . . . . . . . . . . . 4 Machine Destruction 32 | . . . . . . 13 . 11 . 6 . . . . . 2 . . . . . . . . . . . . . Programmers 4 | . . . . . . . . . . . . . . . . . . . . . . . . . . . . . 4 Fabnet Peak Effective % . | . . . . . . . . . . . . . . . . . . . . . . . . . . . . . . Robots Rewired 21 | . . . . . . 6 . . . . . . 10 . . . . . . . . . . 5 . . . . . Allies Hacked . | . . . . . . . . . . . . . . . . . . . . . . . . . . . . . . Hacks Repelled . | . . . . . . . . . . . . . . . . . . . . . . . . . . . . . . Allies | -11 -10 -10 -10 -9 -8 -8 -8 -8 -7 -7 -7 -6 -6 -6 -6 -5 -5 -5 -5 -4 -4 -4 -4 -4 -3 -3 -3 -2 -1 -------- Run | Yrd Mat Min Exi Min Mat Gar Mat Gar Fac Gar Fac Fac Ext Cet Arc Fac Upp Upp Zhi Pro Fac Upp Upp War Pro Res Qua Res Acc Total Allies 41 | . . 3 . . . 8 . . . . 3 2 20 . . . . . . . . . . 5 . . . . . Largest Group 11 | . . 3 1 1 . 8 4 . . . 3 2 11 10 6 3 . . . . . . . 5 . . . . . Highest-Rated Group 467 | . . 40 16 16 . 110 40 . . . 90 64 467 436 299 73 . . . . . . . 253 . . . . . Highest-Rated Ally 159 | . . 16 16 16 . 25 10 . . . 30 32 159 159 159 34 . . . . . . . 56 . . . . . Initial Warlord ECA Mod 313 | . . . . . . . 7 7 13 13 17 16 16 16 16 15 15 15 15 14 14 14 14 14 13 13 13 12 11 Total Orders 10 | . . . . . . . . . . . . 2 . . . . . . . . 4 2 . . . . 2 . . EXPLORE 5 | . . . . . . . . . . . . 1 . . . . . . . . 3 . . . . . 1 . . RETURN 5 | . . . . . . . . . . . . 1 . . . . . . . . 1 2 . . . . 1 . . Ally Attacks 410 | . . 4 . 11 . 37 5 . . 15 24 9 151 74 16 13 . 4 . . 20 15 . 12 . . . . . Total Damage 9703 | . . 49 . 145 . 1339 128 . . 763 695 496 2849 1474 260 190 . 222 . . 294 284 . 515 . . . . . Kills 75 | . . 1 . 3 . 10 . . . 6 7 4 25 9 2 2 . 1 . . 1 2 . 2 . . . . . Allies Corrupted . | . . . . . . . . . . . . . . . . . . . . . . . . . . . . . . Allies Melted 2 | . . . . . . 1 . . . . 1 . . . . . . . . . . . . . . . . . . Turrets Deployed 3 | . . . . . . 1 . . . 1 . . . . . . . 1 . . . . . . . . . . . Intel | -11 -10 -10 -10 -9 -8 -8 -8 -8 -7 -7 -7 -6 -6 -6 -6 -5 -5 -5 -5 -4 -4 -4 -4 -4 -3 -3 -3 -2 -1 ------- Run | Yrd Mat Min Exi Min Mat Gar Mat Gar Fac Gar Fac Fac Ext Cet Arc Fac Upp Upp Zhi Pro Fac Upp Upp War Pro Res Qua Res Acc Active Infowar (turns) 15084 | 20 629 4 . . . 538 . 483 628 2 781 1027 . . . 484 376 543 377 968 593 1529 643 1477 612 911 737 589 1133 Optics 9673 | . . . . . . . . . . . . . . . . . . 109 377 968 593 1529 643 1477 612 911 737 589 1128 Sensors 10123 | . . . . . . . . . 312 . 778 985 . . . 484 349 . . 835 469 1401 643 934 518 542 687 427 759 Terrain 823 | . . . . . . . . . 137 2 154 530 . . . . . . . . . . . . . . . . . Structural 516 | . . . . . . . . . . . . . . . . . . . . . . . . . . . 178 338 . Traps 667 | . . . . . . . . . . . . . . . . . 27 543 97 . . . . . . . . . . Seismic 3636 | 20 629 4 . . . 538 . 483 272 . . . . . . . . . . . . . . . . 513 732 426 19 Cloaking 2836 | . . . . . . . . . . . . . . . . . . . . . . . . 935 512 383 649 38 319 Jamming 762 | . . . . . . . . . . . . . . . . . . . . . . . . . . . . 163 599 Robot Analysis Total 7 | . . 2 . . . . . . . . . . 1 . . . . . 4 . . . . . . . . . . Derelict Logs Recovered 6 | . . 1 . . . . . . . . . . . . . . 1 1 . . . 1 2 . . . . . . Drone Launches 12 | . . . . . . . . . . . . 1 . . . . . . . . 6 3 . . . . 2 . . Drone Recoveries 8 | . . . . . . . . . . . . 1 . . . . . . . . 3 2 . . . . 2 . . Exploration | -11 -10 -10 -10 -9 -8 -8 -8 -8 -7 -7 -7 -6 -6 -6 -6 -5 -5 -5 -5 -4 -4 -4 -4 -4 -3 -3 -3 -2 -1 ------------- Run | Yrd Mat Min Exi Min Mat Gar Mat Gar Fac Gar Fac Fac Ext Cet Arc Fac Upp Upp Zhi Pro Fac Upp Upp War Pro Res Qua Res Acc Turns Passed 24430 | 95 629 632 752 137 314 1374 75 1344 629 1286 1206 1312 1337 424 1462 846 464 543 377 968 593 1529 643 1477 612 911 737 589 1133 Spaces Moved 12531 | 49 322 348 466 79 147 639 25 620 294 478 597 626 670 213 122 329 235 247 258 652 373 1010 300 1235 387 423 331 408 648 Core 9 | 5 . . . . . . . . . . . . . . . . . 4 . . . . . . . . . . . Treads 6001 | 44 322 348 466 79 147 639 25 620 294 420 119 626 670 201 122 329 235 243 52 . . . . . . . . . . Legs 5733 | . . . . . . . . . . . . . . . . . . . 206 652 373 1010 300 995 387 423 331 408 648 Wheels 548 | . . . . . . . . . . 58 478 . . 12 . . . . . . . . . . . . . . . Hover 240 | . . . . . . . . . . . . . . . . . . . . . . . . 240 . . . . . Flight . | . . . . . . . . . . . . . . . . . . . . . . . . . . . . . . Fastest Speed 44 | 50 160 160 160 160 155 155 155 160 160 135 120 160 160 160 160 160 160 160 120 120 120 120 120 44 110 110 107 110 111 Average Speed 143 | 148 160 160 160 160 157 155 155 160 160 198 157 160 160 160 160 160 160 167 128 120 120 120 120 102 119 146 175 123 126 Slowest Speed 600 | 160 160 160 160 160 160 155 160 240 240 480 240 160 160 165 160 160 160 600 190 120 120 120 120 286 180 346 354 130 187 Overloaded Moves 14 | . . . . . . . . . . . . . . . . . . . . . . . . . . 14 . . . Propulsion Burnouts . | . . . . . . . . . . . . . . . . . . . . . . . . . . . . . . Robots Hopped 2 | . . . . . . . . . . 2 . . . . . . . . . . . . . . . . . . . Potential Cave-ins 6 | . . . . . . . . . . . . . . . . . . . . . . . 1 . 5 . . . . Cave-ins Triggered . | . . . . . . . . . . . . . . . . . . . . . . . . . . . . . . Teleports 2 | . . . . . . . . . . . . . . . . . . . . . . . . . . . 2 . . Exploration Rate (%) 45 | 5 49 66 69 26 19 71 9 79 11 49 25 20 81 66 85 11 43 48 61 72 14 69 50 87 67 13 47 20 24 Regions Visited 29 Branch Regions 15 Pre-discovered Areas 5 | . . . 1 . . . . . . . . . . . . . 1 . 3 . . . . . . . . . . Known Exits Taken 17 | . . . . . 1 . 1 . 1 . 1 1 1 1 1 1 1 1 1 1 1 . . . 1 1 . 1 . Unknown Exits Taken 9 | 1 1 1 1 1 . . . . . . . . . . . . . . . . . 1 1 1 . . 1 . . Scrap Searched 14 | . . 2 . . . . . . . . . . . . . . 1 2 . 2 . 3 2 . 2 . . . . Spaces Dug 182 | . . . . . . 6 . 3 4 12 4 7 . . . 6 . 32 . . 4 . 21 . 36 12 16 3 16 Terrain Destroyed 902 | . . 21 . . . 78 . 101 4 12 5 58 7 1 . 67 24 160 . 8 54 2 59 5 71 29 27 5 104 Melee 35 | . . . . . . 6 . 3 4 7 4 7 . . . . . . . . . . . . . 1 3 . . Projectile 311 | . . . . . . 1 . . . . 1 16 . 1 . 19 12 16 . 8 18 2 59 5 71 28 15 5 34 AOE 556 | . . 21 . . . 71 . 98 . 5 . 35 7 . . 48 12 144 . . 36 . . . . . 9 . 70 Terrain Rammed . | . . . . . . . . . . . . . . . . . . . . . . . . . . . . . . Walls Destroyed . | . . . . . . . . . . . . . . . . . . . . . . . . . . . . . . Machines Disabled . | . . . . . . . . . . . . . . . . . . . . . . . . . . . . . . Actions | -11 -10 -10 -10 -9 -8 -8 -8 -8 -7 -7 -7 -6 -6 -6 -6 -5 -5 -5 -5 -4 -4 -4 -4 -4 -3 -3 -3 -2 -1 --------- Run | Yrd Mat Min Exi Min Mat Gar Mat Gar Fac Gar Fac Fac Ext Cet Arc Fac Upp Upp Zhi Pro Fac Upp Upp War Pro Res Qua Res Acc Total 17283 | 65 390 388 475 88 207 892 45 807 403 683 785 833 852 266 1336 484 282 321 298 826 463 1257 510 1423 453 592 428 496 935 Wait 2426 | 2 13 6 . 4 20 55 . 47 26 69 95 89 31 6 1184 47 26 10 . 166 23 187 138 13 20 43 29 16 61 Move 12501 | 48 321 347 465 78 147 638 25 619 294 473 596 625 669 212 121 328 234 246 257 651 372 1009 299 1234 386 422 330 407 648 Hop 2 | . . . . . . . . . . 2 . . . . . . . . . . . . . . . . . . . Pick Up 208 | 6 16 2 6 1 7 9 1 2 9 6 6 10 7 7 . 11 2 3 8 . 12 8 3 14 1 16 11 14 10 Fast Attach 174 | 5 . . . . 4 7 1 4 11 12 9 6 2 6 4 13 2 8 8 4 7 . 1 33 . 7 1 6 13 Attach 90 | 2 . 2 . 1 1 5 . 4 2 . . 4 4 1 . 5 1 3 2 . 7 5 2 9 . 4 10 4 12 Detach 27 | . . . . . . 3 . 1 3 . 1 . . . . 1 . . 1 . 2 . . 10 . 1 2 2 . Swap 287 | . 2 5 . . 4 32 3 40 7 16 22 43 8 3 1 11 3 . 1 . 4 9 . 9 3 21 7 6 27 Drop 286 | . 6 5 4 1 9 20 5 4 19 19 15 11 10 16 5 10 1 2 12 1 8 3 1 50 2 12 3 25 7 Fire 809 | 2 27 20 . 3 11 41 . 16 . 8 21 32 41 15 21 57 13 49 9 4 26 36 66 8 41 58 16 15 153 Melee 281 | . . . . . . 32 9 70 32 74 15 10 . . . . . . . . . . . 9 . 6 19 1 4 Ram . | . . . . . . . . . . . . . . . . . . . . . . . . . . . . . . Kick 2 | . . . . . . . . . . . . . . . . . . . . . 1 . . . . 1 . . . Crush 18 | . 5 1 . . 4 . 1 . . . 2 3 1 . . 1 . . . . . . . . . . . . . Escape Stasis 7 | . . . . . . . . . . 4 3 . . . . . . . . . . . . . . . . . . Rewire 164 | . . . . . . 50 . . . . . . 79 . . . . . . . . . . 34 . 1 . . . Trap . | . . . . . . . . . . . . . . . . . . . . . . . . . . . . . . Miscellaneous 1 | . . . . . . . . . . . . . . . . . . . . . 1 . . . . . . . . Route ------- -11/Scrapyard -10/Materials -10/Mines (discovered 2 exits: [*Mat] / *Exi) -10/Exiles -9/Mines -8/Materials -8/Garrison (discovered 4 exits: *Mat x4) -8/Materials -8/Garrison (discovered 2 exits: *Fac x2) -7/Factory -7/Garrison (discovered 2 exits: *Fac x2) -7/Factory -6/Factory (discovered 4 exits: Low x2 / *Ext x2) -6/Extension (discovered 2 exits: *Fac / *Cet) -6/Cetus (discovered 2 exits: *Fac / *Arc) -6/Archives (discovered 3 exits: *Fac / [*Hub x2]) -5/Factory -5/Upper Caves -5/Upper Caves -5/Zhirov -4/Proximity Caves -4/Factory (discovered 2 exits: *Res / *Upp) -4/Upper Caves -4/Upper Caves (discovered 2 exits: Res / *War) -4/Warlord -3/Proximity Caves -3/Research -3/Quarantine -2/Research -1/Access (discovered 1 exit: Com) History --------- Turn | Location | Event 35 | -11/Scrapyard | Discovered new exit (range 15) 96 | -11/Scrapyard | Entered Materials 143 | -10/Materials | Discovered new exit (range 14) 316 | -10/Materials | Build established: Mutant 725 | -10/Materials | Entered Mines 763 | -10/Mines | Learned 2 Materials zone layouts 1083 | -10/Mines | Found a Scrap Suit stashed away for nefarious purposes 1087 | -10/Mines | Found Scrap Suit 1097 | -10/Mines | Discovered new exit (range 6) 1286 | -10/Mines | Assembled infested the area 1291 | -10/Mines | Assisted by a Guerilla fighting off Assembled 1336 | -10/Mines | Assisted by bots powering up and referring to "LRC-V3" 1350 | -10/Mines | Deemed a non-threat by the Exiles lab entrance 1350 | -10/Mines | Discovered new exit (range 5) 1357 | -10/Mines | Entered Exiles 1357 | -10/Exiles | Accompanied by 1 ally 1399 | -10/Exiles | Met 8R-AWN 1425 | -10/Exiles | Met EX-HEX 1497 | -10/Exiles | Met EX-DEC 1526 | -10/Exiles | Learned location of Zion (-7) 1641 | -10/Exiles | Met EX-BIN 1660 | -10/Exiles | Aligned with FarCom system 1662 | -10/Exiles | Given EX-Vault access code 1700 | -10/Exiles | Opened EX-Vault 1709 | -10/Exiles | Found AWS/Gauss 1742 | -10/Exiles | Warned to stay clear of 0b10 Research branches 1951 | -10/Exiles | Found Deploy-a-Sentry 1953 | -10/Exiles | Found Deploy-a-Sentry 1956 | -10/Exiles | Found Deploy-a-Sentry 2093 | -10/Exiles | Discovered new exit (range 12) 2109 | -10/Exiles | Stole two prototypes: AWS/Gauss, Deploy-a-Sentry 2109 | -10/Exiles | Entered Mines 2109 | -9/Mines | Accompanied by 1 ally 2128 | -9/Mines | Received a Rocket Launcher from a helpful Derelict 2145 | -9/Mines | Excavation squad dispatched 2145 | -9/Mines | A large section of the Mines collapsed 2238 | -9/Mines | Discovered new exit (range 5) 2246 | -9/Mines | Entered Materials 2246 | -8/Materials | Evolved 4 slots: Propulsion x1, Utility x2, Weapon x1 2309 | -8/Materials | Garrison activated, responded to threat 2560 | -8/Materials | Identified exit to Garrison 2560 | -8/Materials | Entered Garrison 2823 | -8/Garrison | Triggered checkpoint 2833 | -8/Garrison | Triggered checkpoint 2839 | -8/Garrison | Triggered checkpoint 2847 | -8/Garrison | Triggered checkpoint 2860 | -8/Garrison | Destroyed 8 combat bots 3067 | -8/Garrison | Triggered checkpoint 3090 | -8/Garrison | Discovered new exit (range 68) 3090 | -8/Garrison | Discovered new exit (range 13) 3090 | -8/Garrison | Discovered new exit (range 85) 3090 | -8/Garrison | Discovered new exit (range 64) 3109 | -8/Garrison | Garrison Relay disabled 3256 | -8/Garrison | DAS Turret deployed 3257 | -8/Garrison | Triggered checkpoint 3277 | -8/Garrison | Triggered checkpoint 3328 | -8/Garrison | Triggered checkpoint 3388 | -8/Garrison | Found Hvy. Insulated Plating 3461 | -8/Garrison | Garrison Relay disabled 3662 | -8/Garrison | Triggered checkpoint 3746 | -8/Garrison | Rescued a captive Derelict 3748 | -8/Garrison | Rescued a captive Derelict 3752 | -8/Garrison | Triggered checkpoint 3809 | -8/Garrison | Lost 4 allies 3812 | -8/Garrison | Garrison Relay disabled 3840 | -8/Garrison | Build established: Commander-Mutant 3934 | -8/Garrison | Entered Materials 3934 | -8/Materials | Accompanied by 4 allies 3950 | -8/Materials | Garrison activated, responded to threat 3990 | -8/Materials | Lost 4 allies 4009 | -8/Materials | Identified exit to Garrison 4009 | -8/Materials | Entered Garrison 4147 | -8/Garrison | Triggered checkpoint 4263 | -8/Garrison | Garrison Relay disabled 4272 | -8/Garrison | Build established: Scavenger-Mutant 4414 | -8/Garrison | Triggered checkpoint 4415 | -8/Garrison | Triggered checkpoint 4522 | -8/Garrison | Triggered checkpoint 4628 | -8/Garrison | Triggered checkpoint 4704 | -8/Garrison | Garrison Relay disabled 4739 | -8/Garrison | Discovered new exit (range 10) 4953 | -8/Garrison | Discovered new exit (range 15) 5003 | -8/Garrison | Triggered checkpoint 5039 | -8/Garrison | Garrison Relay disabled 5151 | -8/Garrison | Triggered checkpoint 5353 | -8/Garrison | Entered Factory 5353 | -7/Factory | Evolved 2 slots: Utility x2 5355 | -7/Factory | FarCom data flow suspended 5982 | -7/Factory | Identified exit to Garrison 5982 | -7/Factory | Entered Garrison 6057 | -7/Garrison | Triggered checkpoint 6120 | -7/Garrison | Triggered checkpoint 6139 | -7/Garrison | Triggered checkpoint 6156 | -7/Garrison | DAS Turret deployed 6218 | -7/Garrison | Triggered checkpoint 6397 | -7/Garrison | Triggered checkpoint 6412 | -7/Garrison | Garrison Relay disabled 6553 | -7/Garrison | Heavy support dispatched to Factory 6808 | -7/Garrison | Discovered new exit (range 15) 6867 | -7/Garrison | Build established: Mutant 7142 | -7/Garrison | Triggered checkpoint 7190 | -7/Garrison | Garrison Relay disabled 7253 | -7/Garrison | Discovered new exit (range 12) 7267 | -7/Garrison | Identified exit to Factory 7268 | -7/Garrison | Entered Factory 7406 | -7/Factory | Fabricated L-41 Fighter? 7513 | -7/Factory | Fabricated Adv. Actuator Array (x2) 8070 | -7/Factory | Build established: Tank 8444 | -7/Factory | Discovered new exit (range 15) 8468 | -7/Factory | First assault squad dispatched 8472 | -7/Factory | Identified exit to Factory 8474 | -7/Factory | Entered another Factory area 8474 | -6/Factory | Evolved 2 slots: Power x1, Propulsion x1 8922 | -6/Factory | Repaired Shield Generator 8985 | -6/Factory | Build established: Skirmisher 9184 | -6/Factory | Fabricated Y-54 Guardian? 9473 | -6/Factory | Identified exit to Lower Caves 9473 | -6/Factory | Identified exit to Extension 9786 | -6/Factory | Entered Extension 9786 | -6/Extension | Accompanied by 2 allies 9832 | -6/Extension | Rescued a captive Derelict 9833 | -6/Extension | Rescued a captive Derelict 9848 | -6/Extension | Rescued a captive Derelict 9848 | -6/Extension | Rescued a captive Derelict 9923 | -6/Extension | Rescued a captive Derelict 10091 | -6/Extension | Build established: Gunner 10470 | -6/Extension | Build established: Commander-Gunner 10508 | -6/Extension | Spotted B-75 Beast 10518 | -6/Extension | Destroyed B-75 Beast 10531 | -6/Extension | Spotted B-75 Beast 10554 | -6/Extension | Allies destroyed B-75 Beast 10579 | -6/Extension | Lost 4 allies 10681 | -6/Extension | Lost 3 allies 10700 | -6/Extension | Rescued a captive Derelict 10701 | -6/Extension | Rescued a captive Derelict 10924 | -6/Extension | Rescued a captive Derelict 10925 | -6/Extension | Rescued a captive Derelict 11001 | -6/Extension | Rescued A7 11036 | -6/Extension | Disrupted transfer network 11091 | -6/Extension | Discovered new exit (range 10) 11093 | -6/Extension | Discovered new exit (range 6) 11101 | -6/Extension | Identified exit to Cetus 11110 | -6/Extension | Identified exit to Factory 11123 | -6/Extension | Entered Cetus 11123 | -6/Cetus | Accompanied by 10 allies (A7) 11128 | -6/Cetus | Acquired a Cetus Manufacturing Module code from A7 11144 | -6/Cetus | Spotted Cetus Guard 11144 | -6/Cetus | Spotted Cetus Guard 11149 | -6/Cetus | Spotted Cetus Guard 11152 | -6/Cetus | Spotted Cetus Guard 11159 | -6/Cetus | Destroyed Cetus Guard 11171 | -6/Cetus | Allies destroyed Cetus Guard 11172 | -6/Cetus | Allies destroyed Cetus Guard 11177 | -6/Cetus | Allies destroyed Cetus Guard 11223 | -6/Cetus | Cetus Manufacturing Module disabled 11224 | -6/Cetus | System corruption reached 10% 11276 | -6/Cetus | Escorted A7 to Cetus Mainframe 11290 | -6/Cetus | Failed to start Cetus Manufacturing Module 11311 | -6/Cetus | Discovered new exit (range 16) 11338 | -6/Cetus | Spotted Cetus Guard 11339 | -6/Cetus | Spotted Cetus Guard 11342 | -6/Cetus | Spotted Cetus Guard 11342 | -6/Cetus | Spotted Cetus Guard 11352 | -6/Cetus | Allies destroyed Cetus Guard 11357 | -6/Cetus | Allies destroyed Cetus Guard 11361 | -6/Cetus | Allies destroyed Cetus Guard 11361 | -6/Cetus | Destroyed Cetus Guard 11371 | -6/Cetus | Discovered exit to Factory (range 16) 11381 | -6/Cetus | Met Revision 17 11480 | -6/Cetus | Build established: Scavenger-Tank 11538 | -6/Cetus | Identified exit to Archives 11547 | -6/Cetus | Entered Archives 11547 | -6/Archives | Accompanied by 6 allies (A7) 11552 | -6/Archives | Received a hacking code to weaken MAIN.C 11623 | -6/Archives | Discovered new exit (range 16) 11969 | -6/Archives | Discovered new exit (range 16) 11996 | -6/Archives | Discovered exit to Factory (range 13) 13009 | -6/Archives | Entered Factory 13009 | -5/Factory | Accompanied by 3 allies 13009 | -5/Factory | Evolved 2 slots: Utility x1, Weapon x1 13051 | -5/Factory | Garrison activated, responded to threat 13713 | -5/Factory | Garrison activated, responded to threat 13780 | -5/Factory | Discovered new exit (range 13) 13820 | -5/Factory | Identified exit to Upper Caves 13855 | -5/Factory | Entered Upper Caves 13855 | -5/Upper Caves | Spotted XH-2OO(f) 13855 | -5/Upper Caves | Spotted H6-EC8(f) 13857 | -5/Upper Caves | Encountered a Master Thief 13857 | -5/Upper Caves | Encountered a Master Thief 13861 | -5/Upper Caves | Met a Warlord Commander 13862 | -5/Upper Caves | Learned location of Warlord (-4) 13863 | -5/Upper Caves | Warlord Commander delivered Encrypted Comm Array 13867 | -5/Upper Caves | Found Encrypted Comm Array 13996 | -5/Upper Caves | System corruption reached 10% 14021 | -5/Upper Caves | Learned Factory terminal intel 14080 | -5/Upper Caves | Lost 3 parts (3w) 14211 | -5/Upper Caves | Spotted B-75 Beast 14305 | -5/Upper Caves | Discovered new exit (range 10) 14318 | -5/Upper Caves | Identified exit to Upper Caves 14319 | -5/Upper Caves | Entered another Upper Caves area 14324 | -5/Upper Caves | DAS Turret deployed 14474 | -5/Upper Caves | Attracted the attention of an 0b10 checkpoint 14630 | -5/Upper Caves | Build established: Scavenger-Mutant 14726 | -5/Upper Caves | Spotted UX-5Y3(f) 14726 | -5/Upper Caves | Destroyed UX-5Y3(f) 14726 | -5/Upper Caves | Spotted NT-5EV(f) 14726 | -5/Upper Caves | Spotted MU-AWR(f) 14727 | -5/Upper Caves | Spotted CA-VA8(f) 14728 | -5/Upper Caves | Encountered a Master Thief 14728 | -5/Upper Caves | Encountered a Master Thief 14728 | -5/Upper Caves | Encountered a Master Thief 14729 | -5/Upper Caves | Destroyed NT-5EV(f) 14733 | -5/Upper Caves | Centrium Heavy Treads stolen by Master Thief 14735 | -5/Upper Caves | Destroyed MU-AWR(f) 14745 | -5/Upper Caves | Destroyed CA-VA8(f) 14766 | -5/Upper Caves | Lost 3 parts (1p1u1w) 14779 | -5/Upper Caves | Discovered new exit (range 8) 14841 | -5/Upper Caves | Identified exit to Zhirov 14862 | -5/Upper Caves | Entered Zhirov 14864 | -5/Zhirov | Discovered new exit (range 3) 14892 | -5/Zhirov | Met Zhirov 14989 | -5/Zhirov | Found Alien Artifact 14989 | -5/Zhirov | Identified Integrated Reactor 14989 | -5/Zhirov | Installed Integrated Reactor, increased core energy generation (+10) 15087 | -5/Zhirov | Learned location of Quarantine (-3) 15087 | -5/Zhirov | Learned location of Testing (-2) 15087 | -5/Zhirov | Learned location of Command (-1) 15099 | -5/Zhirov | Zhirov requested help retrieving the SGEMP Prototype 15184 | -5/Zhirov | Found Alien Artifact 15238 | -5/Zhirov | Identified exit to Proximity Caves 15239 | -5/Zhirov | Entered Proximity Caves 15685 | -4/Proximity Caves | Build established: Scavenger-Skirmisher 15977 | -4/Proximity Caves | Received a Behemoth hack from an annoying Tinkerer 16094 | -4/Proximity Caves | P-70 Sage assimilated allied WK-GUY(c) 16101 | -4/Proximity Caves | Discovered new exit (range 4) 16152 | -4/Proximity Caves | Identified exit to Factory 16207 | -4/Proximity Caves | Entered Factory 16207 | -4/Factory | Evolved 2 slots: Utility x2 16208 | -4/Factory | Identified exit to Upper Caves 16209 | -4/Factory | Loaded intel: 26 terminal locations 16342 | -4/Factory | Fabricated Assault Drone Bay? 16379 | -4/Factory | Lost 3 parts (1n1u1w) 16573 | -4/Factory | Discovered new exit (range 29) 16649 | -4/Factory | Identified exit to Research 16726 | -4/Factory | Lost 3 allies 16733 | -4/Factory | Lost 3 parts (1p2w) 16800 | -4/Factory | Entered Upper Caves 16964 | -4/Upper Caves | Attracted the attention of an 0b10 checkpoint 17385 | -4/Upper Caves | Learned location of 1 exit from Research 17415 | -4/Upper Caves | Entered an active Warlord outpost 17437 | -4/Upper Caves | Learned Factory terminal intel 17626 | -4/Upper Caves | Spotted B-86 Titan 18219 | -4/Upper Caves | Destroyed B-86 Titan 18318 | -4/Upper Caves | Discovered new exit (range 9) 18329 | -4/Upper Caves | Entered another Upper Caves area 18433 | -4/Upper Caves | Spotted B-86 Titan 18754 | -4/Upper Caves | Build established: Scavenger-Tank 18938 | -4/Upper Caves | Learned Research trap positions 18952 | -4/Upper Caves | Learned Research garrison access intel 18955 | -4/Upper Caves | Discovered new exit (range 14) 18972 | -4/Upper Caves | Entered Warlord 19006 | -4/Warlord | System corruption reached 10% 19018 | -4/Warlord | System corruption cleaned by Quarantine Array 19160 | -4/Warlord | Found Prototype Device 19331 | -4/Warlord | Build established: Scavenger-Skirmisher 19501 | -4/Warlord | Found Prototype Processor 19501 | -4/Warlord | Identified Exp. Armor Integrity Analyzer 19504 | -4/Warlord | Found Prototype Device 19504 | -4/Warlord | Identified Exp. Focal Shield 19514 | -4/Warlord | Found Prototype Device 19514 | -4/Warlord | Identified Exp. Cloaking Device 19529 | -4/Warlord | Found Prototype Reactor 19556 | -4/Warlord | Warlord's base attacked by MAIN.C 19606 | -4/Warlord | Found Prototype Piercing Weapon 19606 | -4/Warlord | Identified Vortex Lance 19765 | -4/Warlord | Murdered LV-01A 19769 | -4/Warlord | Identified Vortex Chain Reactor 19815 | -4/Warlord | Found Prototype Hackware 19882 | -4/Warlord | Found Vortex Lance 19884 | -4/Warlord | Found Vortex Lance 19886 | -4/Warlord | Found Vortex Lance 19906 | -4/Warlord | Warlord forces counterattacked 19925 | -4/Warlord | Met Warlord 20068 | -4/Warlord | Spotted Striker 20117 | -4/Warlord | Lost 12 allies 20231 | -4/Warlord | Warlord base infiltrated, sounded retreat 20268 | -4/Warlord | Build established: Scavenger-Tank 20326 | -4/Warlord | Spotted B-86 Titan 20371 | -4/Warlord | Spotted Striker 20374 | -4/Warlord | Spotted Striker 20409 | -4/Warlord | Discovered new exit (range 14) 20431 | -4/Warlord | Lost 10 allies 20449 | -4/Warlord | Entered Proximity Caves 20456 | -3/Proximity Caves | Attracted the attention of an 0b10 checkpoint 20550 | -3/Proximity Caves | Spotter reported a threat 20667 | -3/Proximity Caves | Spotter reported a threat 20811 | -3/Proximity Caves | Spotter reported a threat 20910 | -3/Proximity Caves | Spotted B-86 Titan 21028 | -3/Proximity Caves | Discovered exit to Research (range 16) 21040 | -3/Proximity Caves | Spotter reported a threat 21061 | -3/Proximity Caves | Entered Research 21061 | -3/Research | Evolved 2 slots: Power x1, Propulsion x1 21062 | -3/Research | Identified exit to Quarantine 21063 | -3/Research | Loaded intel: 91 trap records 21064 | -3/Research | Loaded intel: 3 garrison access locations 21311 | -3/Research | Search patrols dispatched 21561 | -3/Research | Search patrols dispatched 21889 | -3/Research | Spotted B-90 Cyclops 21972 | -3/Research | Entered Quarantine 21985 | -3/Quarantine | Identified Ghost Barrier 21998 | -3/Quarantine | Lost 6 parts (1p1n4u) 22046 | -3/Quarantine | Build established: Scavenger-Gladiator 22289 | -3/Quarantine | Found Alien Energy Cannon 22334 | -3/Quarantine | Found Alien Artifact 22335 | -3/Quarantine | Identified Transdimensional Reconstructor (x2) 22335 | -3/Quarantine | Warped through subspace 22362 | -3/Quarantine | Warped through subspace 22673 | -3/Quarantine | Discovered new exit (range 21) 22709 | -3/Quarantine | Entered Research 22709 | -2/Research | Warlord forces began assault on 0b10 22709 | -2/Research | Evolved 2 slots: Propulsion x2 22734 | -2/Research | Distinguished unit "Railsplitters" dispatched to help 22734 | -2/Research | Distinguished unit "Magnificent Bastards" dispatched to help 22777 | -2/Research | Found Quantum Capacitor 22807 | -2/Research | Spotted B-90 Cyclops 22819 | -2/Research | Research machine network offline 22856 | -2/Research | Discovered new exit (range 7) 22870 | -2/Research | Met up with Warlord 22976 | -2/Research | Met DD-05H 23079 | -2/Research | Build established: Scavenger-Skirmisher 23298 | -2/Research | Identified exit to Access 23298 | -2/Research | Entered Access 23298 | -1/Access | Evolved 2 slots: Utility x2 23338 | -1/Access | Spotted B-99 Colossus 23350 | -1/Access | Destroyed B-99 Colossus 23385 | -1/Access | Lost 5 allies 23420 | -1/Access | Identified exit to Command 23813 | -1/Access | Destroyed 7 combat bots 23985 | -1/Access | Lost 4 parts (1p1n1u1w) 24236 | -1/Access | System corruption reached 10% 24298 | -1/Access | First assault squad dispatched 24431 | -1/Access | Self-destructed Last Messages --------------- 24422_ Slug penetrates Wall. 24422_ Acquired Lgt. Quantum Reactor. 24423_ Slug penetrates Wall. 24424_ Acquired Adv. Cooling System. 24424_ K-01 Serf collects debris. 24426_ Slug penetrates B-74 Champion. 24426_ Slug penetrates Wall. 24426_ Enh. Optical Array destroyed. 24427_ Wall collapses. 24427_ System corrupted: Component data lost. 24427_ Penetrated by Slug. 24427_ Biometal Leg destroyed. 24427_ Acquired Rnf. Quantum Reactor. 24428_ K-01 Serf collects debris. 24429_ Sneak attack on K-01 Serf. 24429_ Destroyed Unknown Wheel. 24429_ K-01 Serf destroyed. 24429_ K-01 Serf collects debris. 24430_ Quantum Capacitor destroyed. 24430_ System corrupted by crushing effect (+4). Map ----- +----------------------------------------------------+ | ??????????# #?????? #????????????? | | ?????????## ####??? #????????????? | | ?????????# # ??? #????????????? | | ?????????# % #### #????????????? | | ????????## [ %/ =/ #????????????? | | ???????# # % #=## ! #????????????? | | ???????## # ##? % !#????????????? | | ???????# # # #??? *"%" #????????????? | | ???????# ####### # #???########+###????????????? | | ???????## ## # # # #????????### ##########?????? | | ????????## ## ####???????? ????? | | ???????? # ########## ????? | | ??????# ### %k ???? | | ????? + ???? | | ??? # ###! ???? | | ?? ?# ???# ###g ] /// ??? | | ?? ??### #???#######?# !!! /// ??? | | ????????# ????????????# !!! /// ??? | | ????????#?????????????# Ag!g! ##??????? | | ??????????# ????????# #???????? | | ??????????# * # hg g #???????? | | ??????????# / hg +???????? | | ??????????# # #;g######### #???????? | | ??????????##+#####+#### #=%= #??? #???????? | | ??????????????????????# #bb! = #????? #???????? | | ??????????????????????#g%@ k #???????????????? | | ??????????????????????#u#k #???????????????? | | ??????????????????????# # #???????????????? | | ??????????????????????# # #???????????????? | | ??????????????????????# # #???????????????? | | ??????????????????????# # #???????????????? | | ??????????????????????# # #???????????????? | | ??????????????????????# ##########???????????????? | | ?????????????????????? ?????????????????????????? | | ?????????????????????? ?????????????????????????? | | ?????????????????????? ?????????????????????????? | | ?????????????????????? ?????????????????????????? | | ??????????????????????#??????????????????????????? | | ?????????????????????????????????????????????????? | | ?????????????????????????????????????????????????? | | ?????????????????????????????????????????????????? | | ?????????????????????????????????????????????????? | | ?????????????????????????????????????????????????? | | ?????????????????????????????????????????????????? | | ?????????????????????????????????????????????????? | | ?????????????????????????????????????????????????? | | ?????????????????????????????????????????????????? | | ?????????????????????????????????????????????????? | | ?????????????????????????????????????????????????? | | ?????????????????????????????????????????????????? | +----------------------------------------------------+ Best States ------------- Heat Dissipation 133 Energy Generation 85 Energy Capacity 1200 Matter Stores 323 Matter Capacity 350 Sight Range 22 Robot Scan Range 18 Terrain Scan Range 16 Terrain Scan Density 85 Jamming Range 14 Cloak Strength 4 Armor Coverage 750 Resistance: KI 30 Resistance: TH 10 Resistance: EM 30 Core Shielding 20 Weapon Shielding 90 Phase Shifting 15 Evasion (%) 80 Targeting Accuracy 8 Target Analysis 8 Core Analysis 6 Recoil Reduction 4 Offensive Hacking 12 Defensive Hacking 14 Item Schematics ----------------- Assault Drone Bay | -5/Zhirov | Free Exp. Heat Sink | -5/Zhirov | Free Exp. Optical Array | -5/Zhirov | Free Imp. Arc Thrower | -5/Zhirov | Free Electron Diverter | -3/Quarantine | Archive Cld. Plasma Rifle | -3/Quarantine | Archive Robot Schematics ------------------ None Fabricated ------------ L-41 Fighter | x3 | -7/Factory | Preloaded Adv. Actuator Array | x2 | -7/Factory | Preloaded Y-54 Guardian | x2 | -6/Factory | Preloaded Assault Drone Bay | x1 | -4/Factory Repaired ---------- Shield Generator | 10% | -6/Factory Alien Tech Used ----------------- Integrated Reactor Transdimensional Reconstructor Achievements -------------- None Challenges ------------ None Game ------ Seed NavigationAdvancedScythe Manual? 0 Play Time 06:44:16 Cumulative 152.5 hours Start 2025.10.17 @ 00:49:29 End 2025.10.20 @ 16:41:50 Sessions 19 Manual Loads 0 Difficulty Rogue Special Mode None Game No. 75 Rogue 70 Adventurer 5 Explorer 0 Win Type - Total 2 Types 2/0/0/0/0/0/0/0/0/0 Lore% 58 Gallery% 62 Achievement% 57 Wizard Run 0 Options --------- Layout 1 ASCII 0 Keyboard 0 Movement Numpad Keybinds 0 Fullscreen 1 Font 24/Smallcaps Map View 50x35 Zoom Use 0% Tactical HUD 1 Map Filters NONE Filters NONE Steam 1 RUN: daa4c4ac-16f2-4bec-ad73-536e8dfae026